{"text_format":"1","workbook":"xlsx","n_sheets":15,"sheets":["HOME","UI Tenaga Listrik","UI Bahan Bakar","UI Biomassa","Status Emisi","Referensi","SIH","FE BB Stasioner","FE BB Gerak","FE Listrik","Nilai Kalor_NCV","Density","Nilai Kalor_NCV kg","List Kota","List BBM"],"not_rendered":{"charts":0,"images":36,"macros":1,"external_links":0,"defined_names":9,"comments":0,"pivot_tables":0},"unopened":[],"bounds":{"document_bytes":16777216,"sheet_cells":100000,"rows_first":2000,"rows_last":500,"rows_between":2000,"halvings":0,"cell_chars":16384,"cell_head_chars":4096},"cells_cut":0,"cells_raw":0,"read":"whole","date_system":"1900"}

{"sheet":"HOME","index":0,"n_rows":12,"n_cols":8,"rows_kept":12,"cut":false,"hidden":false,"merged":[[4,2,4,5],[5,2,5,5]]}
[]
[]
[]
[]
[]
[null,null,"SUMBER ENERGI APA YANG ANDA GUNAKAN ?"]
[]
[]
[]
[null,null,null,null,null,null,null,"Attention/Perhatian:"]
[null,null,null,null,null,null,null,"mohon enable macros anda"]
[null,null,null,null,null,null,null,"zoom level pada 86%"]

{"sheet":"UI Tenaga Listrik","index":1,"n_rows":33,"n_cols":7,"rows_kept":33,"cut":false,"hidden":true,"merged":[]}
[]
[]
[]
[]
[null,null,"Sumber Energi",null,"Tenaga Listrik"]
[]
[null,null,"Lokasi Industri/Grid Pembangkit",null,"Lambuya - Sulawesi Tenggara"]
[]
[null,null,"Faktor Emisi CO2 (Listrik)",null,{"$f":"IFERROR(VLOOKUP(E7,'FE Listrik'!A4:B111,2,FALSE),\"0\")","v":"0,56"},null,"  kg GRK/kWh"]
[]
[null,null,"Faktor Emisi CH4 (Listrik)",null,0,null,"  kg GRK/kWh"]
[]
[null,null,"Faktor Emisi N2O (Listrik)",null,0,null,"  kg GRK/kWh"]
[]
[null,null,"Konsumsi Energi Listrik (per bulan)",null,null,null,"  kWh"]
[]
[]
[]
[]
[]
[]
[null,null,"Nilai Emisi Gas Rumah Kaca (per bulan)"]
[]
[null,null,"Emisi Karbon Dioksida (CO2)",null,null,null,"kg CO2"]
[null,null,null,null,null,null,"kg CO2e"]
[]
[null,null,"Emisi Metana (CH4)",null,null,null,"kg CH4"]
[null,null,null,null,null,null,"kg CO2e"]
[]
[null,null,"Emisi Nitrous Oxide (N2O)",null,null,null,"kg N2O"]
[null,null,null,null,null,null,"kg CO2e"]
[]
[null,null,"Total Emisi CO2 ekivalen",null,null,null,"kg CO2e"]

{"sheet":"UI Bahan Bakar","index":2,"n_rows":55,"n_cols":11,"rows_kept":55,"cut":false,"hidden":true,"merged":[]}
[]
[]
[]
[]
[null,null,"Sumber Energi",null,"Bahan Bakar Fossil"]
[null,null,null,null,null,null,null,null,null,null," "]
[null,null,"Tipe Equipment",null,"Tak Bergerak"]
[]
[null,null,"Jenis Sumber Energi Bergerak"]
[]
[null,null,"Jenis Sumber Energi Tak Bergerak"]
[]
[null,null,"Faktor Emisi CO2 (Bergerak)",null,{"$f":"IFERROR(VLOOKUP(E9,'FE BB Gerak'!A3:B20,2,FALSE),\"0\")","v":"0"},null,"  kg GRK/TJ"]
[]
[null,null,"Faktor Emisi CH4 (Bergerak)",null,{"$f":"IFERROR(VLOOKUP(E9,'FE BB Gerak'!A3:C20,3,FALSE),\"0\")","v":"0"},null,"  kg GRK/TJ"]
[]
[null,null,"Faktor Emisi N2O (Bergerak)",null,{"$f":"IFERROR(VLOOKUP(E9,'FE BB Gerak'!A3:D20,4,FALSE),\"0\")","v":"0"},null,"  kg GRK/TJ"]
[]
[null,null,"Faktor Emisi CO2 (Tak Bergerak)",null,{"$f":"IFERROR(VLOOKUP(E11,'FE BB Stasioner'!A3:B48,2,FALSE),\"0\")","v":"0"},null,"  kg GRK/TJ"]
[]
[null,null,"Faktor Emisi CH4 (Tak Bergerak)",null,{"$f":"IFERROR(VLOOKUP(E11,'FE BB Stasioner'!A3:C48,3,FALSE),\"0\")","v":"0"},null,"  kg GRK/TJ"]
[]
[null,null,"Faktor Emisi N2O (Tak Bergerak)",null,{"$f":"IFERROR(VLOOKUP(E11,'FE BB Stasioner'!A3:D48,4,FALSE),\"0\")","v":"0"},null,"  kg GRK/TJ"]
[]
[null,null,"Nilai Kalor (Nett Calorific Value)",null,{"$f":"IFERROR(IF(E7=\"Bergerak\",VLOOKUP(E9,'Nilai Kalor_NCV kg'!A2:B52,2,FALSE),VLOOKUP('UI Bahan Bakar'!E11,'Nilai Kalor_NCV kg'!A2:B52,2,FALSE)),\"0\")","v":"0"},null,"  TJ/kg"]
[]
[null,null,"Satuan Konsumsi Energi (per bulan)",null,"liter"]
[]
[null,null,"Konsumsi Energi (per bulan)",null,null,null,"  kg"]
[]
[null,null,"Massa jenis sumber energi",null,{"$f":"IFERROR(IF(E7=\"Bergerak\",VLOOKUP(E9,Density!A2:C47,2,FALSE),VLOOKUP('UI Bahan Bakar'!E11,Density!A2:C47,2,FALSE))/1000,\"0\")","v":"0"},null,"  kg/liter"]
[]
[null,null,"Konsumsi Energi (per bulan)",null,null,null,"  liter"]
[]
[null,null,"Konsumsi Energi (per bulan) (auto)",null,{"$f":"E33*E31","v":0},null,"  kg"]
[]
[null,null,"Konsumsi Energi (per bulan) (auto)",null,{"$f":"IFERROR(IF(E27=\"kilogram\",E29*E25,E35*E25),\"0\")","v":0},null,"  TJ"]
[]
[]
[]
[]
[]
[]
[null,null,"Nilai Emisi Gas Rumah Kaca (per bulan)"]
[]
[null,null,"Emisi Karbon Dioksida (CO2)",null,null,null,"kg CO2"]
[null,null,null,null,null,null,"kg CO2e"]
[]
[null,null,"Emisi Metana (CH4)",null,null,null,"kg CH4"]
[null,null,null,null,null,null,"kg CO2e"]
[]
[null,null,"Emisi Nitrous Oxide (N2O)",null,null,null,"kg N2O"]
[null,null,null,null,null,null,"kg CO2e"]
[]
[null,null,"Total Emisi CO2 ekivalen",null,null,null,"kg CO2e"]

{"sheet":"UI Biomassa","index":3,"n_rows":49,"n_cols":7,"rows_kept":49,"cut":false,"hidden":true,"merged":[]}
[]
[]
[]
[]
[null,null,"Sumber Energi",null,"Biomassa"]
[]
[null,null,"Tipe Equipment",null,"Tak Bergerak"]
[]
[null,null,"Jenis Biomassa"]
[]
[null,null,"Faktor Emisi CO2 (Tak Bergerak)",null,{"$f":"IFERROR(VLOOKUP($E$9,'FE BB Stasioner'!$A$49:$B$53,2,FALSE),\"0\")","v":"0"},null,"  kg GRK/TJ"]
[]
[null,null,"Faktor Emisi CH4 (Tak Bergerak)",null,{"$f":"IFERROR(VLOOKUP($E$9,'FE BB Stasioner'!$A$49:$C$53,3,FALSE),\"0\")","v":"0"},null,"  kg GRK/TJ"]
[]
[null,null,"Faktor Emisi N2O (Tak Bergerak)",null,{"$f":"IFERROR(VLOOKUP(E9,'FE BB Stasioner'!A49:D53,4,FALSE),\"0\")","v":"0"},null,"  kg GRK/TJ"]
[]
[null,null,"Nilai Kalor (Nett Calorific Value)",null,{"$f":"IFERROR(VLOOKUP($E$9,'Nilai Kalor_NCV kg'!A$48:B$52,2,FALSE),\"0\")","v":"0"},null,"  TJ/kg"]
[]
[null,null,"Satuan Konsumsi Energi (per bulan)",null,"kilogram"]
[]
[null,null,"Konsumsi Energi (per bulan)",null,null,null,"  liter"]
[]
[null,null,"Massa jenis sumber energi",null,{"$f":"IFERROR((VLOOKUP(E9,Density!A50:C54,2,FALSE)/1000),\"0\")","v":"0"},null,"  kg/liter"]
[]
[null,null,"Konsumsi Energi (per bulan) (auto)",null,{"$f":"E23*E21","v":0},null,"  kg"]
[]
[null,null,"Konsumsi Energi (per bulan)",null,null,null,"  kg"]
[]
[null,null,"Konsumsi Energi (per bulan) (auto)",null,{"$f":"E25*E17","v":0},null,"  TJ"]
[]
[null,null,"Konsumsi Energi (per bulan) (auto)",null,{"$f":"E27*E17","v":0},null,"  TJ"]
[]
[]
[]
[]
[]
[]
[null,null,"Nilai Emisi Gas Rumah Kaca (per bulan)"]
[]
[null,null,"Emisi Karbon Dioksida (CO2)",null,null,null,"kg CO2"]
[null,null,null,null,null,null,"kg CO2e"]
[]
[null,null,"Emisi Metana (CH4)",null,null,null,"kg CH4"]
[null,null,null,null,null,null,"kg CO2e"]
[]
[null,null,"Emisi Nitrous Oxide (N2O)",null,null,null,"kg N2O"]
[null,null,null,null,null,null,"kg CO2e"]
[]
[null,null,"Total Emisi CO2 ekivalen",null,null,null,"kg CO2e"]

{"sheet":"Status Emisi","index":4,"n_rows":60,"n_cols":7,"rows_kept":60,"cut":false,"hidden":true,"merged":[]}
[]
[]
[]
[]
[null,null,"Jenis Industri"]
[]
[null,null,{"$f":"IF(E5=\"Gula Kristal Putih\",\"Bahan Baku Tebu yang Digunakan\",\"Produk yang Dihasilkan per Bulan\")","v":"Produk yang Dihasilkan per Bulan"},null,null,null,{"$f":"IFERROR(VLOOKUP(E5,SIH!$A$2:$F$50,6,FALSE),\"  ton\")","v":"  ton"}]
[]
[null,null,"Emisi yang Dihasilkan per Bulan dari Produksi",null,null,null,"  kg CO2e"]
[]
[null,null,"Batas Emisi CO2e Industri (kg CO2e / sat. produk)",null,{"$f":"IFERROR(VLOOKUP(E5,SIH!$A$2:$D$50,4,FALSE),\"0\")","v":"0"},null,{"$f":"CONCATENATE(\"  kg CO2e /\",G7)","v":"  kg CO2e /  ton"}]
[]
[null,null,"Peraturan Acuan Batas Emisi",null,{"$f":"IFERROR(VLOOKUP(E5,SIH!$A$2:$E$50,5,FALSE),\"\")","v":""}]
[]
[]
[]
[]
[]
[]
[]
[null,null,"Emisi CO2e Industri (kg CO2e / sat. produk)",null,null,null,{"$f":"CONCATENATE(\"  kg CO2e /\",G7)","v":"  kg CO2e /  ton"}]
[]
[null,null,"Kategori Emisi"]
[]
[null,null,{"$f":"IFERROR(IF(E21>E11,\"Kurangi Emisi CO2e Anda Sebesar\",\"Rasio Emisi Anda di Bawah Batasan Sebesar\"),\" \")","v":"Rasio Emisi Anda di Bawah Batasan Sebesar"},null,null,null,{"$f":"CONCATENATE(\"  kg CO2e /\",G7)","v":"  kg CO2e /  ton"}]
[]
[]
[]
[]
[]
[]
[]
[]
[]
[]
[]
[]
[]
[]
[]
[]
[]
[]
[]
[]
[]
[]
[]
[]
[]
[]
[]
[]
[]
[]
[]
[]
[]
[]
[null,-1]

{"sheet":"Referensi","index":5,"n_rows":74,"n_cols":17,"rows_kept":74,"cut":false,"hidden":true,"merged":[[2,2,2,26]]}
[]
[]
[null,null,"ACUAN DAN REFERENSI"]
[]
[null,null,"PERTIMBANGAN PENENTUAN PEMILIHAN PENDEKATAN TIER 1",null,null,null,null,null,null,null,null,null,null,null,null,"RUMUS YANG DIGUNAKAN DALAM PERHITUNGAN"]
[null,null,"SOURCE : 2006 IPCC GUIDELINES FOR NATIONAL GREENHOUSE GAS INVENTORIES, PEDOMAN INVENTARISASI GRK KLHK 2012",null,null,null,null,null,null,null,null,null,null,null,null,"SOURCE : 2006 IPCC GUIDELINES FOR NATIONAL GREENHOUSE GAS INVENTORIES, PEDOMAN INVENTARISASI GRK KLHK 2012"]
[]
[]
[]
[]
[]
[]
[]
[]
[]
[]
[]
[]
[]
[]
[]
[]
[]
[]
[]
[]
[]
[]
[]
[]
[]
[]
[]
[]
[]
[]
[]
[]
[]
[]
[]
[]
[]
[null,null,null,null,null,null,null,null,null,null,null,null,null,null,null,"ACUAN KONVERSI CO2 EKIVALEN"]
[null,null,null,null,null,null,null,null,null,null,null,null,null,null,null,"SOURCE : GHG PROTOCOL 2016 FIFTH ASSESMENT REPORT (AR5)"]
[]
[]
[]
[]
[]
[]
[]
[]
[]
[]
[]
[]
[]
[]
[]
[]
[]
[]
[]
[]
[]
[]
[]
[]
[null,null,null,null,null,null,null,null,null,null,null,null,null,null,null,"DATABASE YANG DIGUNAKAN"]
[null,null,null,null,null,null,null,null,null,null,null,null,null,null,null,"SOURCE : 2006 IPCC GUIDELINES FOR NATIONAL GREENHOUSE GAS INVENTORIES, PEDOMAN INVENTARISASI GRK KLHK 2012"]
[null,null,null,null,null,null,null,null,null,null,null,null,null,null,null,null,"DIREKTORAT JENDERAL KETENAGALISTRIKAN KEMENTERIAN ENERGI DAN SUMBER DAYA MINERAL"]
[null,null,null,null,null,null,null,null,null,null,null,null,null,null,null,"WEB       :","https://www.ipcc-nggip.iges.or.jp/EFDB/main.php"]
[null,null,null,null,null,null,null,null,null,null,null,null,null,null,null,null,"https://gatrik.esdm.go.id/"]

{"sheet":"SIH","index":6,"n_rows":50,"n_cols":12,"rows_kept":50,"cut":false,"hidden":true,"merged":[]}
["SIH","Sat","Bahan / Metode Produksi","Maksimum / ton Produk","No Permenperin","Satuan","Ket.",null,null,null,{"$f":"COUNTIF($L:$L,\"?*\")","v":49}]
["Tas, Kantong Plastik, Bioplastik bahan Polimer","kg CO2/ton","Polimer",440,"PERMENPERIN NO. 55 TAHUN 2020","  ton",null,null,{"$f":"IF(ISNUMBER(SEARCH('Status Emisi'!$E$5,SIH!J2)),MAX($I$1:I1)+1,0)","v":1},"Tas, Kantong Plastik, Bioplastik bahan Polimer",{"$f":"OFFSET($L$2,0,0,COUNTIF(L:L,\"?*\"),1)","v":"Tas, Kantong Plastik, Bioplastik bahan Polimer"},{"$f":"IFERROR(VLOOKUP(ROWS($L$1:L1),$I$2:$J$50,2,FALSE),\"\")","v":"Tas, Kantong Plastik, Bioplastik bahan Polimer"}]
["Tas, Kantong Plastik, Bioplastik bahan Daur Ulang","kg CO2/ton","Daur Ulang",560,"PERMENPERIN NO. 55 TAHUN 2020","  ton",null,null,{"$f":"IF(ISNUMBER(SEARCH('Status Emisi'!$E$5,SIH!J3)),MAX($I$1:I2)+1,0)","v":2},"Tas, Kantong Plastik, Bioplastik bahan Daur Ulang",null,{"$f":"IFERROR(VLOOKUP(ROWS($L$1:L2),$I$2:$J$50,2,FALSE),\"\")","v":"Tas, Kantong Plastik, Bioplastik bahan Daur Ulang"}]
["Tas, Kantong Plastik, Bioplastik bahan Biopolimer","kg CO2/ton","Biopolimer",560,"PERMENPERIN NO. 55 TAHUN 2020","  ton",null,null,{"$f":"IF(ISNUMBER(SEARCH('Status Emisi'!$E$5,SIH!J4)),MAX($I$1:I3)+1,0)","v":3},"Tas, Kantong Plastik, Bioplastik bahan Biopolimer",null,{"$f":"IFERROR(VLOOKUP(ROWS($L$1:L3),$I$2:$J$50,2,FALSE),\"\")","v":"Tas, Kantong Plastik, Bioplastik bahan Biopolimer"}]
["Pupuk Nitrogen, Phospor, Kalium Padat (Fusion Granulation)","kg CO2/ton","Fusion Granulation",117,"PERMENPERIN NO. 50 TAHUN 2020","  ton",null,null,{"$f":"IF(ISNUMBER(SEARCH('Status Emisi'!$E$5,SIH!J5)),MAX($I$1:I4)+1,0)","v":4},"Pupuk Nitrogen, Phospor, Kalium Padat (Fusion Granulation)",null,{"$f":"IFERROR(VLOOKUP(ROWS($L$1:L4),$I$2:$J$50,2,FALSE),\"\")","v":"Pupuk Nitrogen, Phospor, Kalium Padat (Fusion Granulation)"}]
["Pupuk Nitrogen, Phospor, Kalium Padat (Chemical Granulation)",null,"Chemical Granulation",80,"PERMENPERIN NO. 50 TAHUN 2020","  ton",null,null,{"$f":"IF(ISNUMBER(SEARCH('Status Emisi'!$E$5,SIH!J6)),MAX($I$1:I5)+1,0)","v":5},"Pupuk Nitrogen, Phospor, Kalium Padat (Chemical Granulation)",null,{"$f":"IFERROR(VLOOKUP(ROWS($L$1:L5),$I$2:$J$50,2,FALSE),\"\")","v":"Pupuk Nitrogen, Phospor, Kalium Padat (Chemical Granulation)"}]
["Karet Remah (Crumb Rubber)","kg CO2/ton","-",200,"PERMENPERIN NO. 9 TAHUN 2019","  ton",null,null,{"$f":"IF(ISNUMBER(SEARCH('Status Emisi'!$E$5,SIH!J7)),MAX($I$1:I6)+1,0)","v":6},"Karet Remah (Crumb Rubber)",null,{"$f":"IFERROR(VLOOKUP(ROWS($L$1:L6),$I$2:$J$50,2,FALSE),\"\")","v":"Karet Remah (Crumb Rubber)"}]
["Penyamakan Kulit Sapi, Kerbau Domba Kambing","kg CO2/ton",null,0.9,"PERMENPERIN NO. 37 TAHUN 2019","  ft2",null,null,{"$f":"IF(ISNUMBER(SEARCH('Status Emisi'!$E$5,SIH!J8)),MAX($I$1:I7)+1,0)","v":7},"Penyamakan Kulit Sapi, Kerbau Domba Kambing",null,{"$f":"IFERROR(VLOOKUP(ROWS($L$1:L7),$I$2:$J$50,2,FALSE),\"\")","v":"Penyamakan Kulit Sapi, Kerbau Domba Kambing"}]
["Kaca Lembaran","kg CO2/ton","-",600,"PERMENPERIN NO. 12 TAHUN 2020","  ton",null,null,{"$f":"IF(ISNUMBER(SEARCH('Status Emisi'!$E$5,SIH!J9)),MAX($I$1:I8)+1,0)","v":8},"Kaca Lembaran",null,{"$f":"IFERROR(VLOOKUP(ROWS($L$1:L8),$I$2:$J$50,2,FALSE),\"\")","v":"Kaca Lembaran"}]
["Ubin Keramik Kategori BIIa, BIIb, BIII","kg CO2/ton","BIIa, BIIb, BIII",23000,"PERMENPERIN NO. 12 TAHUN 2019","  ton",null,null,{"$f":"IF(ISNUMBER(SEARCH('Status Emisi'!$E$5,SIH!J10)),MAX($I$1:I9)+1,0)","v":9},"Ubin Keramik Kategori BIIa, BIIb, BIII",null,{"$f":"IFERROR(VLOOKUP(ROWS($L$1:L9),$I$2:$J$50,2,FALSE),\"\")","v":"Ubin Keramik Kategori BIIa, BIIb, BIII"}]
["Ubin Keramik Kategori BIa, BIb","kg CO2/ton","BIa, BIb",18330,"PERMENPERIN NO. 12 TAHUN 2019","  ton",null,null,{"$f":"IF(ISNUMBER(SEARCH('Status Emisi'!$E$5,SIH!J11)),MAX($I$1:I10)+1,0)","v":10},"Ubin Keramik Kategori BIa, BIb",null,{"$f":"IFERROR(VLOOKUP(ROWS($L$1:L10),$I$2:$J$50,2,FALSE),\"\")","v":"Ubin Keramik Kategori BIa, BIb"}]
["Oleokimia Dasar bersumber Minyak Nabati","kg CO2/ton","-",1000,"PERMENPERIN NO. 31 TAHUN 2021","  ton",null,null,{"$f":"IF(ISNUMBER(SEARCH('Status Emisi'!$E$5,SIH!J12)),MAX($I$1:I11)+1,0)","v":11},"Oleokimia Dasar bersumber Minyak Nabati",null,{"$f":"IFERROR(VLOOKUP(ROWS($L$1:L11),$I$2:$J$50,2,FALSE),\"\")","v":"Oleokimia Dasar bersumber Minyak Nabati"}]
["Kopi Instan","kg CO2/ton",null,3750,"PERMENPERIN NO. 54 TAHUN 2020","  ton",null,null,{"$f":"IF(ISNUMBER(SEARCH('Status Emisi'!$E$5,SIH!J13)),MAX($I$1:I12)+1,0)","v":12},"Kopi Instan",null,{"$f":"IFERROR(VLOOKUP(ROWS($L$1:L12),$I$2:$J$50,2,FALSE),\"\")","v":"Kopi Instan"}]
["Barang Lainnya dari Kaca","kg CO2/ton","-",600,"PERMENPERIN NO. 30 TAHUN 2021","  ton",null,null,{"$f":"IF(ISNUMBER(SEARCH('Status Emisi'!$E$5,SIH!J14)),MAX($I$1:I13)+1,0)","v":13},"Barang Lainnya dari Kaca",null,{"$f":"IFERROR(VLOOKUP(ROWS($L$1:L13),$I$2:$J$50,2,FALSE),\"\")","v":"Barang Lainnya dari Kaca"}]
["Tepung Terigu Tanpa Peletisasi","kg CO2/ton","Tanpa Peletisasi",45,"PERMENPERIN NO. 32 TAHUN 2021","  ton",null,null,{"$f":"IF(ISNUMBER(SEARCH('Status Emisi'!$E$5,SIH!J15)),MAX($I$1:I14)+1,0)","v":14},"Tepung Terigu Tanpa Peletisasi",null,{"$f":"IFERROR(VLOOKUP(ROWS($L$1:L14),$I$2:$J$50,2,FALSE),\"\")","v":"Tepung Terigu Tanpa Peletisasi"}]
["Tepung Terigu Dengan Peletisasi",null,"Dengan Peletisasi",50,"PERMENPERIN NO. 32 TAHUN 2021","  ton",null,null,{"$f":"IF(ISNUMBER(SEARCH('Status Emisi'!$E$5,SIH!J16)),MAX($I$1:I15)+1,0)","v":15},"Tepung Terigu Dengan Peletisasi",null,{"$f":"IFERROR(VLOOKUP(ROWS($L$1:L15),$I$2:$J$50,2,FALSE),\"\")","v":"Tepung Terigu Dengan Peletisasi"}]
["Pengasapan Karet (Ribbed Smoked Sheet) Tanpa Blower","kg CO2/ton","Tanpa Blower",20,"PERMENPERIN NO. 33 TAHUN 2021","  ton",null,null,{"$f":"IF(ISNUMBER(SEARCH('Status Emisi'!$E$5,SIH!J17)),MAX($I$1:I16)+1,0)","v":16},"Pengasapan Karet (Ribbed Smoked Sheet) Tanpa Blower",null,{"$f":"IFERROR(VLOOKUP(ROWS($L$1:L16),$I$2:$J$50,2,FALSE),\"\")","v":"Pengasapan Karet (Ribbed Smoked Sheet) Tanpa Blower"}]
["Pengasapan Karet (Ribbed Smoked Sheet) Dengan Blower",null,"Dengan Blower",115,"PERMENPERIN NO. 33 TAHUN 2021","  ton",null,null,{"$f":"IF(ISNUMBER(SEARCH('Status Emisi'!$E$5,SIH!J18)),MAX($I$1:I17)+1,0)","v":17},"Pengasapan Karet (Ribbed Smoked Sheet) Dengan Blower",null,{"$f":"IFERROR(VLOOKUP(ROWS($L$1:L17),$I$2:$J$50,2,FALSE),\"\")","v":"Pengasapan Karet (Ribbed Smoked Sheet) Dengan Blower"}]
["Gula Kristal Putih","kg CO2/ton","-",15,"PERMENPERIN NO. 9 TAHUN 2020","  ton","tebu",null,{"$f":"IF(ISNUMBER(SEARCH('Status Emisi'!$E$5,SIH!J19)),MAX($I$1:I18)+1,0)","v":18},"Gula Kristal Putih",null,{"$f":"IFERROR(VLOOKUP(ROWS($L$1:L18),$I$2:$J$50,2,FALSE),\"\")","v":"Gula Kristal Putih"}]
["Peralatan Saniter dari Keramik","kg CO2/ton","-",1000,"PERMENPERIN NO. 10 TAHUN 2020","  ton",null,null,{"$f":"IF(ISNUMBER(SEARCH('Status Emisi'!$E$5,SIH!J20)),MAX($I$1:I19)+1,0)","v":19},"Peralatan Saniter dari Keramik",null,{"$f":"IFERROR(VLOOKUP(ROWS($L$1:L19),$I$2:$J$50,2,FALSE),\"\")","v":"Peralatan Saniter dari Keramik"}]
["Biskuit dan Produk Roti Kering Lainnya","kg CO2/ton","-",300,"PERMENPERIN NO. 11 TAHUN 2020","  ton",null,null,{"$f":"IF(ISNUMBER(SEARCH('Status Emisi'!$E$5,SIH!J21)),MAX($I$1:I20)+1,0)","v":20},"Biskuit dan Produk Roti Kering Lainnya",null,{"$f":"IFERROR(VLOOKUP(ROWS($L$1:L20),$I$2:$J$50,2,FALSE),\"\")","v":"Biskuit dan Produk Roti Kering Lainnya"}]
["Suku Cadang dan Silencer Kendaraan Roda Empat atau Lebih","kg CO2/ton","-",50.75,"PERMENPERIN NO. 13 TAHUN 2020","  ton",null,null,{"$f":"IF(ISNUMBER(SEARCH('Status Emisi'!$E$5,SIH!J22)),MAX($I$1:I21)+1,0)","v":21},"Suku Cadang dan Silencer Kendaraan Roda Empat atau Lebih",null,{"$f":"IFERROR(VLOOKUP(ROWS($L$1:L21),$I$2:$J$50,2,FALSE),\"\")","v":"Suku Cadang dan Silencer Kendaraan Roda Empat atau Lebih"}]
["Peralatan Rumah Tangga dari Keramik Single Firing","kg CO2/ton","Single Firing",3,"PERMENPERIN NO. 46 TAHUN 2020","  ton",null,null,{"$f":"IF(ISNUMBER(SEARCH('Status Emisi'!$E$5,SIH!J23)),MAX($I$1:I22)+1,0)","v":22},"Peralatan Rumah Tangga dari Keramik Single Firing",null,{"$f":"IFERROR(VLOOKUP(ROWS($L$1:L22),$I$2:$J$50,2,FALSE),\"\")","v":"Peralatan Rumah Tangga dari Keramik Single Firing"}]
["Peralatan Rumah Tangga dari Keramik Double Firing",null,"Double Firing",7,"PERMENPERIN NO. 46 TAHUN 2020","  ton",null,null,{"$f":"IF(ISNUMBER(SEARCH('Status Emisi'!$E$5,SIH!J24)),MAX($I$1:I23)+1,0)","v":23},"Peralatan Rumah Tangga dari Keramik Double Firing",null,{"$f":"IFERROR(VLOOKUP(ROWS($L$1:L23),$I$2:$J$50,2,FALSE),\"\")","v":"Peralatan Rumah Tangga dari Keramik Double Firing"}]
["Industri Air Mineral dalam Botol","kg CO2/ton","Botol",48,"PERMENPERIN NO. 47 TAHUN 2020","  ton",null,null,{"$f":"IF(ISNUMBER(SEARCH('Status Emisi'!$E$5,SIH!J25)),MAX($I$1:I24)+1,0)","v":24},"Industri Air Mineral dalam Botol",null,{"$f":"IFERROR(VLOOKUP(ROWS($L$1:L24),$I$2:$J$50,2,FALSE),\"\")","v":"Industri Air Mineral dalam Botol"}]
["Industri Air Mineral dalam Galon",null,"Galon",26,"PERMENPERIN NO. 47 TAHUN 2020","  ton",null,null,{"$f":"IF(ISNUMBER(SEARCH('Status Emisi'!$E$5,SIH!J26)),MAX($I$1:I25)+1,0)","v":25},"Industri Air Mineral dalam Galon",null,{"$f":"IFERROR(VLOOKUP(ROWS($L$1:L25),$I$2:$J$50,2,FALSE),\"\")","v":"Industri Air Mineral dalam Galon"}]
["Kemasan dari Kaca","kg CO2/ton","-",600,"PERMENPERIN NO. 48 TAHUN 2020","  ton",null,null,{"$f":"IF(ISNUMBER(SEARCH('Status Emisi'!$E$5,SIH!J27)),MAX($I$1:I26)+1,0)","v":26},"Kemasan dari Kaca",null,{"$f":"IFERROR(VLOOKUP(ROWS($L$1:L26),$I$2:$J$50,2,FALSE),\"\")","v":"Kemasan dari Kaca"}]
["Kertas dan Papan Kertas Bergelombang","kg CO2/ton","-",1400,"PERMENPERIN NO. 49 TAHUN 2020","  ton",null,null,{"$f":"IF(ISNUMBER(SEARCH('Status Emisi'!$E$5,SIH!J28)),MAX($I$1:I27)+1,0)","v":27},"Kertas dan Papan Kertas Bergelombang",null,{"$f":"IFERROR(VLOOKUP(ROWS($L$1:L27),$I$2:$J$50,2,FALSE),\"\")","v":"Kertas dan Papan Kertas Bergelombang"}]
["Cat Berbasis Pelarut Organik","kg CO2/ton","-",58,"PERMENPERIN NO. 51 TAHUN 2020","  ton",null,null,{"$f":"IF(ISNUMBER(SEARCH('Status Emisi'!$E$5,SIH!J29)),MAX($I$1:I28)+1,0)","v":28},"Cat Berbasis Pelarut Organik",null,{"$f":"IFERROR(VLOOKUP(ROWS($L$1:L28),$I$2:$J$50,2,FALSE),\"\")","v":"Cat Berbasis Pelarut Organik"}]
["Kaca Pengaman Berlapis Kendaraan Besar","kg CO2/ton","Kendaraan Besar",66,"PERMENPERIN NO. 52 TAHUN 2020","  m2","per m2",null,{"$f":"IF(ISNUMBER(SEARCH('Status Emisi'!$E$5,SIH!J30)),MAX($I$1:I29)+1,0)","v":29},"Kaca Pengaman Berlapis Kendaraan Besar",null,{"$f":"IFERROR(VLOOKUP(ROWS($L$1:L29),$I$2:$J$50,2,FALSE),\"\")","v":"Kaca Pengaman Berlapis Kendaraan Besar"}]
["Kaca Pengaman Berlapis Kendaraan Kecil",null,"Kendaraan Kecil",9,"PERMENPERIN NO. 52 TAHUN 2020","  m2","per m2",null,{"$f":"IF(ISNUMBER(SEARCH('Status Emisi'!$E$5,SIH!J31)),MAX($I$1:I30)+1,0)","v":30},"Kaca Pengaman Berlapis Kendaraan Kecil",null,{"$f":"IFERROR(VLOOKUP(ROWS($L$1:L30),$I$2:$J$50,2,FALSE),\"\")","v":"Kaca Pengaman Berlapis Kendaraan Kecil"}]
["Kaca Pengaman Berlapis Bangunan",null,"Bangunan",10,"PERMENPERIN NO. 52 TAHUN 2020","  m2","per m2",null,{"$f":"IF(ISNUMBER(SEARCH('Status Emisi'!$E$5,SIH!J32)),MAX($I$1:I31)+1,0)","v":31},"Kaca Pengaman Berlapis Bangunan",null,{"$f":"IFERROR(VLOOKUP(ROWS($L$1:L31),$I$2:$J$50,2,FALSE),\"\")","v":"Kaca Pengaman Berlapis Bangunan"}]
["Industri Kaca Pengaman Diperkeras/Tempered Kendaraan Besar","kg CO2/ton","Kendaraan Besar",23,"PERMENPERIN NO. 53 TAHUN 2020","  m2","per m2",null,{"$f":"IF(ISNUMBER(SEARCH('Status Emisi'!$E$5,SIH!J33)),MAX($I$1:I32)+1,0)","v":32},"Industri Kaca Pengaman Diperkeras/Tempered Kendaraan Besar",null,{"$f":"IFERROR(VLOOKUP(ROWS($L$1:L32),$I$2:$J$50,2,FALSE),\"\")","v":"Industri Kaca Pengaman Diperkeras/Tempered Kendaraan Besar"}]
["Industri Kaca Pengaman Diperkeras/Tempered Kendaraan Kecil",null,"Kendaraan Kecil",14.5,"PERMENPERIN NO. 53 TAHUN 2020","  m2","per m2",null,{"$f":"IF(ISNUMBER(SEARCH('Status Emisi'!$E$5,SIH!J34)),MAX($I$1:I33)+1,0)","v":33},"Industri Kaca Pengaman Diperkeras/Tempered Kendaraan Kecil",null,{"$f":"IFERROR(VLOOKUP(ROWS($L$1:L33),$I$2:$J$50,2,FALSE),\"\")","v":"Industri Kaca Pengaman Diperkeras/Tempered Kendaraan Kecil"}]
["Industri Kaca Pengaman Diperkeras/Tempered Bangunan",null,"Bangunan",32,"PERMENPERIN NO. 53 TAHUN 2020","  m2","per m2",null,{"$f":"IF(ISNUMBER(SEARCH('Status Emisi'!$E$5,SIH!J35)),MAX($I$1:I34)+1,0)","v":34},"Industri Kaca Pengaman Diperkeras/Tempered Bangunan",null,{"$f":"IFERROR(VLOOKUP(ROWS($L$1:L34),$I$2:$J$50,2,FALSE),\"\")","v":"Industri Kaca Pengaman Diperkeras/Tempered Bangunan"}]
["Ribbed Smoked Sheet Rubber","kg CO2/ton","-",18.13,"PERMENPERIN NO. 10 TAHUN 2019","  ton",null,null,{"$f":"IF(ISNUMBER(SEARCH('Status Emisi'!$E$5,SIH!J36)),MAX($I$1:I35)+1,0)","v":35},"Ribbed Smoked Sheet Rubber",null,{"$f":"IFERROR(VLOOKUP(ROWS($L$1:L35),$I$2:$J$50,2,FALSE),\"\")","v":"Ribbed Smoked Sheet Rubber"}]
["Bubur Kertas Pulp","kg CO2/ton","Pulp",350,"PERMENPERIN NO. 11 TAHUN 2019","  ton","ton pulp",null,{"$f":"IF(ISNUMBER(SEARCH('Status Emisi'!$E$5,SIH!J37)),MAX($I$1:I36)+1,0)","v":36},"Bubur Kertas Pulp",null,{"$f":"IFERROR(VLOOKUP(ROWS($L$1:L36),$I$2:$J$50,2,FALSE),\"\")","v":"Bubur Kertas Pulp"}]
["Bubur Kertas Pulp terintegrasi Kertas","kg CO2/ton","Pulp terintegrasi kertas",1500,"PERMENPERIN NO. 11 TAHUN 2019","  ton","ton kertas",null,{"$f":"IF(ISNUMBER(SEARCH('Status Emisi'!$E$5,SIH!J38)),MAX($I$1:I37)+1,0)","v":37},"Bubur Kertas Pulp terintegrasi Kertas",null,{"$f":"IFERROR(VLOOKUP(ROWS($L$1:L37),$I$2:$J$50,2,FALSE),\"\")","v":"Bubur Kertas Pulp terintegrasi Kertas"}]
["Tekstil Pencelupan, Pencapan, dan Penyempurnaan","kg CO2/ton","-",2030,"PERMENPERIN NO. 13 TAHUN 2019","  ton",null,null,{"$f":"IF(ISNUMBER(SEARCH('Status Emisi'!$E$5,SIH!J39)),MAX($I$1:I38)+1,0)","v":38},"Tekstil Pencelupan, Pencapan, dan Penyempurnaan",null,{"$f":"IFERROR(VLOOKUP(ROWS($L$1:L38),$I$2:$J$50,2,FALSE),\"\")","v":"Tekstil Pencelupan, Pencapan, dan Penyempurnaan"}]
["Cat Berbasis Air","kg CO2/ton","-",58,"PERMENPERIN NO. 38 TAHUN 2019","  ton",null,null,{"$f":"IF(ISNUMBER(SEARCH('Status Emisi'!$E$5,SIH!J40)),MAX($I$1:I39)+1,0)","v":39},"Cat Berbasis Air",null,{"$f":"IFERROR(VLOOKUP(ROWS($L$1:L39),$I$2:$J$50,2,FALSE),\"\")","v":"Cat Berbasis Air"}]
["Batik","kg CO2/ton","-",1.58,"PERMENPERIN NO. 39 TAHUN 2019","  m2","per m2",null,{"$f":"IF(ISNUMBER(SEARCH('Status Emisi'!$E$5,SIH!J41)),MAX($I$1:I40)+1,0)","v":40},"Batik",null,{"$f":"IFERROR(VLOOKUP(ROWS($L$1:L40),$I$2:$J$50,2,FALSE),\"\")","v":"Batik"}]
["Kertas Budaya","kg CO2/ton","-",14000,"PERMENPERIN NO. 40 TAHUN 2019","  ton",null,null,{"$f":"IF(ISNUMBER(SEARCH('Status Emisi'!$E$5,SIH!J42)),MAX($I$1:I41)+1,0)","v":41},"Kertas Budaya",null,{"$f":"IFERROR(VLOOKUP(ROWS($L$1:L41),$I$2:$J$50,2,FALSE),\"\")","v":"Kertas Budaya"}]
["Minyak Goreng dari Kelapa Sawit, energi Batubara","kg CO2/ton","Batubara",155,"PERMENPERIN NO. 41 TAHUN 2019","  ton",null,null,{"$f":"IF(ISNUMBER(SEARCH('Status Emisi'!$E$5,SIH!J43)),MAX($I$1:I42)+1,0)","v":42},"Minyak Goreng dari Kelapa Sawit, energi Batubara",null,{"$f":"IFERROR(VLOOKUP(ROWS($L$1:L42),$I$2:$J$50,2,FALSE),\"\")","v":"Minyak Goreng dari Kelapa Sawit, energi Batubara"}]
["Minyak Goreng dari Kelapa Sawit, energi Biomassa",null,"Biomassa",0,"PERMENPERIN NO. 41 TAHUN 2019","  ton",null,null,{"$f":"IF(ISNUMBER(SEARCH('Status Emisi'!$E$5,SIH!J44)),MAX($I$1:I43)+1,0)","v":43},"Minyak Goreng dari Kelapa Sawit, energi Biomassa",null,{"$f":"IFERROR(VLOOKUP(ROWS($L$1:L43),$I$2:$J$50,2,FALSE),\"\")","v":"Minyak Goreng dari Kelapa Sawit, energi Biomassa"}]
["Minyak Goreng dari Kelapa Sawit, energi Gas",null,"Gas",150,"PERMENPERIN NO. 41 TAHUN 2019","  ton",null,null,{"$f":"IF(ISNUMBER(SEARCH('Status Emisi'!$E$5,SIH!J45)),MAX($I$1:I44)+1,0)","v":44},"Minyak Goreng dari Kelapa Sawit, energi Gas",null,{"$f":"IFERROR(VLOOKUP(ROWS($L$1:L44),$I$2:$J$50,2,FALSE),\"\")","v":"Minyak Goreng dari Kelapa Sawit, energi Gas"}]
["Industri Semen Portland Cementitious","kg CO2/ton","Cementitious",750,"PERMENPERIN NO. 26 TAHUN 2018","  ton",null,null,{"$f":"IF(ISNUMBER(SEARCH('Status Emisi'!$E$5,SIH!J46)),MAX($I$1:I45)+1,0)","v":45},"Industri Semen Portland Cementitious",null,{"$f":"IFERROR(VLOOKUP(ROWS($L$1:L45),$I$2:$J$50,2,FALSE),\"\")","v":"Industri Semen Portland Cementitious"}]
["Pupuk Urea, Pupuk SP-36, dan Pupuk Amonium Sulfat","kg CO2/ton",null,1600,"PERMENPERIN NO. 27 TAHUN 2018","  ton",null,null,{"$f":"IF(ISNUMBER(SEARCH('Status Emisi'!$E$5,SIH!J47)),MAX($I$1:I46)+1,0)","v":46},"Pupuk Urea, Pupuk SP-36, dan Pupuk Amonium Sulfat",null,{"$f":"IFERROR(VLOOKUP(ROWS($L$1:L46),$I$2:$J$50,2,FALSE),\"\")","v":"Pupuk Urea, Pupuk SP-36, dan Pupuk Amonium Sulfat"}]
["Pengolahan Susu Bubuk dengan Evaporasi & Spray Drying","kg CO2/ton","Evaporasi, Spray Drying",800,"PERMENPERIN NO. 28 TAHUN 2018","  ton",null,null,{"$f":"IF(ISNUMBER(SEARCH('Status Emisi'!$E$5,SIH!J48)),MAX($I$1:I47)+1,0)","v":47},"Pengolahan Susu Bubuk dengan Evaporasi & Spray Drying",null,{"$f":"IFERROR(VLOOKUP(ROWS($L$1:L47),$I$2:$J$50,2,FALSE),\"\")","v":"Pengolahan Susu Bubuk dengan Evaporasi & Spray Drying"}]
["Pengolahan Susu Bubuk dengan Non Evaporasi & Spray Drying",null,"Non Evap, Spray Drying",600,"PERMENPERIN NO. 28 TAHUN 2018","  ton",null,null,{"$f":"IF(ISNUMBER(SEARCH('Status Emisi'!$E$5,SIH!J49)),MAX($I$1:I48)+1,0)","v":48},"Pengolahan Susu Bubuk dengan Non Evaporasi & Spray Drying",null,{"$f":"IFERROR(VLOOKUP(ROWS($L$1:L48),$I$2:$J$50,2,FALSE),\"\")","v":"Pengolahan Susu Bubuk dengan Non Evaporasi & Spray Drying"}]
["Pengolahan Susu Bubuk dengan Dry Blending",null,"Dry Blending",200,"PERMENPERIN NO. 28 TAHUN 2018","  ton",null,null,{"$f":"IF(ISNUMBER(SEARCH('Status Emisi'!$E$5,SIH!J50)),MAX($I$1:I49)+1,0)","v":49},"Pengolahan Susu Bubuk dengan Dry Blending",null,{"$f":"IFERROR(VLOOKUP(ROWS($L$1:L49),$I$2:$J$50,2,FALSE),\"\")","v":"Pengolahan Susu Bubuk dengan Dry Blending"}]

{"sheet":"FE BB Stasioner","index":7,"n_rows":53,"n_cols":6,"rows_kept":53,"cut":false,"hidden":true,"merged":[[0,0,1,0],[0,1,0,3]]}
["Jenis Bahan Bakar","FE Default IPCC 2006 sumber tak Bergerak, kg/TJ"]
[null,"CO2","CH4","N2O"]
["Minyak Mentah",73300,3,0.6]
["Orimulsion",77000,3,0.6]
["LNG/CNG",64200,3,0.6]
["Premium",69300,3,0.6]
["Pertalite",69300,3,0.6]
["Pertamax",69300,3,0.6]
["Pertamax Plus/Turbo",69300,3,0.6]
["Avgas",70000,3,0.6]
["Avtur",70000,3,0.6]
["Kerosin Jet",71500,3,0.6]
["Kerosin Lain",71900,3,0.6]
["Shale oil",73300,3,0.6]
["Solar",74100,3,0.6]
["Residu",77400,3,0.6]
["LPG",63100,1,0.1]
["Ethana",61600,1,0.1]
["Nafta",73300,3,0.6]
["Bitumen",80700,3,0.6]
["Pelumas",73300,3,0.6]
["Kokas",97500,3,0.6]
["Refinery feedstock",73300,3,0.6]
["Refinery gas",57600,1,0.1]
["Parafin",73300,3,0.6]
["Solvent",73300,3,0.6]
["Antrasit",98300,1,1.5]
["Arang Kokas",94600,1,1.5]
["Batubara Bitumen",94600,1,1.5]
["Batubara Sub-bitumen",96100,1,1.5]
["Lignit",101000,1,1.5]
["Bubuk Tar",107000,1,1.5]
["Briket Batubara",97500,1,1.5]
["Kokas Lignit",107000,1,1.5]
["Kokas Gas",107000,1,0.1]
["Tar Batubara",80700,1,1.5]
["Gas Works Gas",44400,1,0.1]
["Coke Oven Gas",44400,1,0.1]
["Blast Furnace Gas",260000,1,0.1]
["Oxygen Steel Furnace Gas",182000,1,0.1]
["Gas Alam",56100,1,0.1]
["Limbah Kota",91700,30,4]
["Minyak Limbah",73300,30,4]
["Biodiesel",70800,3,0.6]
["Biogasoline",70800,3,0.6]
["Landfill Gas",54600,1,0.1]
["Sludge Gas",54600,1,0.1]
["Biogas Lainnya",54600,1,0.1]
["Gambut",106000,1,1.5,null,"Biomass"]
["Kayu/Limbah Kayu",112000,30,4]
["Arang Kayu",112000,200,4]
["Biomass padat lain",100000,30,4]
["Liquor Hitam",95300,3,2]

{"sheet":"FE BB Gerak","index":8,"n_rows":20,"n_cols":4,"rows_kept":20,"cut":false,"hidden":true,"merged":[[0,0,1,0],[0,1,0,3]]}
["Jenis Bahan Bakar","FE Default IPCC 2006 sumber Bergerak, kg/TJ"]
[null,"CO2","CH4","N2O"]
["LNG/CNG",56100,92,3]
["Premium",69300,33,3.2]
["Pertalite",69300,33,3.2]
["Pertamax",69300,33,3.2]
["Pertamax Plus/Turbo",69300,33,3.2]
["Avgas",70000,0.5,2]
["Avtur",71500,3,0.6]
["Kerosin Jet",71500,3,0.6]
["Kerosin Lain",71900,3,0.6]
["Solar",74100,3.9,3.9]
["Residu",77400,7,2]
["LPG",63100,62,0.2]
["Pelumas",73300,3,0.6]
["Refinery gas",57600,1,0.1]
["Parafin",73300,3,0.6]
["Solvent",73300,3,0.6]
["Batubara Sub-bitumen",96100,2,1.5]
["Gas Alam",56100,92,3]

{"sheet":"FE Listrik","index":9,"n_rows":111,"n_cols":9,"rows_kept":111,"cut":false,"hidden":true,"merged":[[0,0,1,0],[0,6,1,6],[0,7,0,8],[0,2,1,2],[0,4,0,5],[0,3,1,3]]}
["Grid","Emission Factor (Gatrik ESDM 2019)","Provinsi","OM (CO2/MWh)","FE Data ESDM Gatrik, 2019 (kg CO2/kWh)",null,"OM (CO2/MWh)","FE Data ESDM Gatrik, 2019 (ton CO2/MWh)"]
[null,"OM Ex-Post (kg CO2/kWh)",null,null,"Ex-Post","Ex-Ante",null,"Ex-Post","Ex-Ante"]
[]
["Adonara - NTT","0,59","Bali","0,77","0,94","0,93",{"$f":"D4*1000","v":770},{"$f":"E4*1000","v":940},{"$f":"F4*1000","v":930}]
["Alor - NTT","0,58","Nusa Tenggara Timur","0,52","0,87","N/A",{"$f":"D5*1000","v":520},0,0]
["Ambon - Maluku","0,66","Kepulauan Riau","0,59","0,59","0,88",590,{"$f":"E6*1000","v":590},880]
["Bangka - Bangka Belitung","0,89","Nusa Tenggara Timur","0,58","0,58","0,58",580,580,580]
["Barito - Kalimantan Tengah","1,31","Maluku","0,65","0,66","0,66",650,660,660]
["Batam - Kep. Riau","0,82","Sulawesi Tengah","1,04","0,89","0,88",1040,890,880]
["Bau-Bau - Sulawesi Tenggara","0,74","Sulawesi Tengah","0,80","0,87","0,87",800,{"$f":"E10*1000","v":870},870]
["Belitung - Bangka Belitung","1,41","Bangka Belitung","1,20","1,31","1,28",1200,1310,1280]
["Bengkalis - Riau","0,01","Bengkulu","0,76","0,82","0,85",760,820,850]
["Biak - Papua","0,57","Kalimantan Tengah","0,97","0,74","0,67",970,740,670]
["Bima - NTB","0,55","Kepulauan Riau","1,40","1,41","1,46",1400,1410,1460]
["Bualemo - Sulawesi Tengah","0,71","Sulawesi Tenggara","0,01","0,01","0,01",10,10,10]
["Buano - Maluku","0,71","Bangka Belitung","0,77","0,94","0,93",770,940,930]
["Buli - Maluku Utara","0,65","Riau","0,57","0,57","0,61",570,{"$f":"E17*1000","v":570},{"$f":"F17*1000","v":610}]
["Concong Luar - Riau","0,67","Maluku Utara","0,56","0,55","0,57",560,{"$f":"E18*1000","v":550},570]
["Dabo Singkep - Kep.Riau","0,48","Papua","0,70","0,71","0,71",700,710,710]
["Daruba - Maluku Utara","0,60","Sulawesi Utara","0,71","0,71","0,67",710,710,670]
["Dobo - Maluku","0,54","Maluku Utara","0,65","0,65","0,71",650,{"$f":"E21*1000","v":650},{"$f":"F21*1000","v":710}]
["Ende - NTT","1,03","Nusa Tenggara Barat","0,67","0,67","0,69",670,{"$f":"E22*1000","v":670},{"$f":"F22*1000","v":690}]
["Ibu - Maluku Utara","0,60","Sulawesi Tengah","0,48","0,48","N/A",480,{"$f":"E23*1000","v":480},0]
["Ipuh - Bengkulu","0,64","Maluku","0,60","0,60","0,63",600,600,{"$f":"F24*1000","v":630}]
["Banten","0,87","Sulawesi Utara","0,80","0,87","0,87",800,870,870]
["DKI Jakarta","0,87","Maluku","0,80","0,87","0,87",{"$f":"D26*1000","v":800},870,870]
["Jawa Barat","0,87","Maluku Utara","0,54","0,54","0,60",540,540,600]
["Jawa Tengah","0,87","Sulawesi Tengah","1,08","1,03","1,12",1080,1030,1120]
["DI Yogyakarta","0,87","Sulawesi Tengah","0,67","0,78","0,78",670,780,780]
["Jawa Timur","0,87","Riau","0,60","0,60","0,64",600,600,640]
["Jayapura - Papua","0,51","Kepulauan Riau","0,64","0,64","0,69",640,640,690]
["Karakelang - Sulawesi Utara","0,53","Maluku Utara","0,77","0,94","0,93",770,{"$f":"E32*1000","v":940},930]
["Kendari - Sulawesi Tenggara","1,02","Maluku","0,80","0,87","0,87",800,870,870]
["Kesui - Maluku","0,76","Kepulauan Riau","0,80","0,87","0,87",800,870,870]
["Pontianak - KalBar","1,63","Nusa Tenggara Timur","0,80","0,87","0,87",800,870,870]
["Kian Darat - Maluku","0,61","Maluku","0,50","0,51","0,56",500,510,560]
["Kisar - Maluku","0,57","Maluku","0,54","0,53","N/A",540,{"$f":"E37*1000","v":530},0]
["Kobisonta - Maluku","0,59","Maluku Utara","0,87","1,02","1,08",870,{"$f":"E38*1000","v":1020},{"$f":"F38*1000","v":1080}]
["Kolaka - Sulawesi Tenggara","0,46","Bengkulu","0,76","0,76","0,86",760,760,860]
["Kota Bani - Bengkulu","0,70","Maluku Utara","1,67","1,63","1,41",1670,1630,1410]
["Kota Lama - Riau","0,59","Banten","0,61","0,61","0,65",610,610,650]
["Kotaraya - Sulawesi Tengah","0,49","Dki Jakarta","0,57","0,57","0,70",570,570,700]
["Ladan - Kep. Riau","0,54","Jawa Barat","0,59","0,59","0,66",590,590,660]
["Laimu - Maluku","0,67","Jawa Tengah","0,37","0,46","0,50",370,460,500]
["Lambuya - Sulawesi Tenggara","0,56","Di Yogyakarta","0,70","0,70","0,75",700,700,750]
["Lelang - Sulawesi Tengah","0,60","Jawa Timur","0,59","0,59","0,50",590,590,500]
["Lemang - Riau","0,56","Papua","0,47","0,49","0,47",470,490,470]
["Letung - Kepulauan Riau","0,63","Maluku","0,54","0,54","N/A",540,{"$f":"E48*1000","v":540},0]
["Lirung - Sulawesi Utara","0,57","Sulawesi Utara","0,66","0,67","0,72",{"$f":"D49*1000","v":660},670,{"$f":"F49*1000","v":720}]
["Lombok - NTB","1,61","Sulawesi Utara","0,57","0,56","0,57",570,560,570]
["Lumbi-lumbia - SulTeng","0,78","Jawa Tengah","0,77","0,94","0,93",770,940,930]
["Luwuk - Sulawesi Tengah","0,60","Maluku Utara","0,61","0,60","0,59",610,600,590]
["Mahakam - Kalimantan Timur","1,14","Kepulauan Riau","0,56","0,56","0,61",560,560,610]
["Mangaran - Sulawesi Utara","0,62","Sulawesi Tenggara","0,63","0,63","0,66",630,630,660]
["Manokwari - Papua Barat","0,56","Maluku","0,57","0,57","N/A",570,570,0]
["Maumere - NTT","0,56","Kalimantan Barat","1,27","1,61","1,39",1270,1610,{"$f":"F56*1000","v":1390}]
["Merauke - Papua","0,55","Maluku","0,78","0,78","0,79",780,780,{"$f":"F57*1000","v":790}]
["Moa - Maluku","0,51","Maluku","0,60","0,60","0,64",600,600,{"$f":"F58*1000","v":640}]
["Nabire - Papua","0,52","Maluku","1,12","1,14","1,14",1120,1140,{"$f":"F59*1000","v":1140}]
["Namlea - Maluku","0,60","Sulawesi Tenggara","0,63","0,62","N/A",630,620,0]
["Nias - Sumatera Utara","0,75","Bengkulu","0,56","0,56","0,61",560,560,{"$f":"F61*1000","v":610}]
["Pagai Selatan - Sum. Barat","0,66","Riau","0,57","0,56","0,61",570,560,610]
["Palu - Sulawesi Tengah","0,54","Sulawesi Tengah","0,55","0,55","0,61",550,550,610]
["Pulau Buru - Maluku","0,56","Kepulauan Riau","0,51","0,51","0,62",510,510,620]
["Pulau Halang - Riau","0,60","Maluku","0,53","0,52","0,58",{"$f":"D65*1000","v":530},520,580]
["Pulau Tello - SulSel","0,91","Sulawesi Tenggara","0,60","0,60","0,60",600,600,600]
["Raha - Sulawesi Tenggara","0,57","Maluku","0,44","0,43","N/A",440,430,0]
["Ranai - Kepulauan Riau","0,57","Sulawesi Tengah","0,77","0,75","0,75",770,750,{"$f":"F68*1000","v":750}]
["S Nasik - Bangka Belitung","0,43","Riau","0,67","0,66","0,73",670,660,{"$f":"F69*1000","v":730}]
["Saumlaki - Maluku","0,51","Nusa Tenggara Timur","0,54","0,54","0,55",540,540,{"$f":"F70*1000","v":550}]
["Selat Panjang - Riau","0,51","Kepulauan Riau","0,57","0,56","0,57",570,560,{"$f":"F71*1000","v":570}]
["Serui - Papua","0,59","Sulawesi Tengah","0,60","0,60","0,57",600,{"$f":"E72*1000","v":600},570]
["Siberut - Sumatera Barat","0,70","Maluku","0,82","0,91","0,88",820,910,880]
["Siberut Utara - Sum. Barat","0,71","Sulawesi Utara","0,57","0,57","0,58",570,570,580]
["Sipora - Sumatera Barat","0,67","Maluku Utara","0,57","0,57","N/A",570,{"$f":"E75*1000","v":570},0]
["Sorong - Papua Barat","0,56","Nusa Tenggara Barat","0,77","0,94","0,93",770,{"$f":"E76*1000","v":940},{"$f":"F76*1000","v":930}]
["Sulawesi Selatan","0,95","Maluku","0,52","0,51","0,60",520,{"$f":"E77*1000","v":510},{"$f":"F77*1000","v":600}]
["Sulawesi Barat","0,95","Sulawesi Tengah","0,51","0,51","0,56",510,{"$f":"E78*1000","v":510},{"$f":"F78*1000","v":560}]
["Sulawesi Utara","0,78","Sulawesi Tengah","0,59","0,59","0,63",590,{"$f":"E79*1000","v":590},{"$f":"F79*1000","v":630}]
["Gorontalo","0,78","Maluku Utara","0,71","0,70","0,77",{"$f":"D80*1000","v":710},{"$f":"E80*1000","v":700},{"$f":"F80*1000","v":770}]
["Aceh","0,94","Kalimantan Timur","0,71","0,71","0,78",710,710,780]
["Bengkulu","0,94","Sulawesi Utara","0,67","0,67","0,74",670,670,740]
["Jambi","0,94","Maluku","0,56","0,56","0,60",560,560,600]
["Lampung","0,94","Maluku Utara","0,73","0,95","0,95",730,950,950]
["Riau","0,94","Sulawesi Utara","0,73","0,95","0,95",730,950,950]
["Sumatera Barat","0,94","Nusa Tenggara Timur","0,67","0,78","0,78",670,780,780]
["Sumatera Selatan","0,94","Papua Barat","0,77","0,94","0,93",770,940,930]
["Sumatera Utara","0,94","Sulawesi Utara","0,77","0,94","0,93",770,940,930]
["Sumbawa - NTB","0,70","Sulawesi Utara","0,77","0,94","0,93",770,940,930]
["Tagulandang - SulUt","0,55","Maluku","0,69","0,70","0,70",690,700,700]
["Tahuna - Sulawesi Utara","0,58","Nusa Tenggara Timur","0,55","0,55","N/A",550,{"$f":"E91*1000","v":550},0]
["Tambelan - Kepulauan Riau","0,65","Papua","0,58","0,58","N/A",580,580,0]
["Taniwel - Maluku","0,58","Sulawesi Utara","0,65","0,65","N/A",650,650,0]
["Tanjung Balai Karimun","0,84","Kepulauan Riau","0,58","0,58","0,61",580,580,{"$f":"F94*1000","v":610}]
["Tanjung Batu - Kep. Riau","0,50","Maluku","1,19","0,84","0,87",1190,840,{"$f":"F95*1000","v":870}]
["Tanjung Samak - Riau","0,56","Kepulauan Riau","0,51","0,50","N/A",510,500,0]
["Tarakan - Kalimantan Utara","0,48","Bengkulu","0,56","0,56","0,60",560,560,{"$f":"F97*1000","v":600}]
["Tehoru - Maluku","0,64","Papua","0,29","0,48","0,59",290,480,{"$f":"F98*1000","v":590}]
["Teluk Ketapang - Riau","0,76","Maluku","0,65","0,64","0,70",650,{"$f":"E99*1000","v":640},{"$f":"F99*1000","v":700}]
["Ternate -Tidore","0,48","Maluku","0,77","0,76","0,75",770,{"$f":"E100*1000","v":760},{"$f":"F100*1000","v":750}]
["Timika - Papua","0,57","Sulawesi Utara","0,42","0,48","0,62",420,{"$f":"E101*1000","v":480},{"$f":"F101*1000","v":620}]
["Timor - NTT","0,69","Sumatera Utara","0,57","0,57","0,61",570,570,610]
["Tobelo - Maluku Utara","0,59","Maluku","0,79","0,69","0,70",790,690,700]
["Toili - Sulawesi Tengah","0,60","Sumatera Barat","0,59","0,59","0,59",590,590,590]
["Toli-Toli - Sulawesi Tengah","0,50","Sulawesi Tengah","0,61","0,60","0,67",610,600,670]
["Tual - Maluku","0,58","Sulawesi Tengah","0,48","0,50","0,51",480,500,510]
["Wahai - Maluku","0,63","Maluku","0,58","0,58","0,58",580,580,580]
["Waingapu - NTT","0,55","Kepulauan Riau","0,63","0,63","0,69",{"$f":"D108*1000","v":630},630,690]
["Wakai - Sulawesi Tengah","0,72","Maluku","0,54","0,55","0,60",540,550,600]
["Wangi-Wangi - SulTra","0,51","Maluku","0,71","0,72","0,72",710,720,720]
["Werinama - Maluku","0,67","Maluku","0,52","0,51","0,55",520,510,550]

{"sheet":"Nilai Kalor_NCV","index":10,"n_rows":12,"n_cols":3,"rows_kept":12,"cut":false,"hidden":true,"merged":[]}
["Jenis Bahan Bakar","Nilai Kalor (TJ/unit)","Penggunaan"]
["Premium (liter)",3.3000000000000003E-5,"Kendaraan Bermotor"]
["Pertamax (liter)",3.3000000000000003E-5,"Kendaraan Bermotor"]
["Pertamax Plus (liter)",3.3000000000000003E-5,"Kendaraan Bermotor"]
["Solar (HSD, ADO) (liter)",3.6000000000000001E-5,"Kendaraan Bermotor, Pembangkit"]
["Minyak Diesel (IDO) (liter)",3.8000000000000002E-5,"Boiler Industri"]
["Marine Fuel Oil (liter)",4.0000000000000003E-5,"Pembangkit Listrik"]
["Marine Fuel Oil (ton)",4.0399999999999998E-2,"Pembangkit Listrik"]
["Gas Bumi (SCF)",1.0550000000000001E-6,"Industri, rumah tangga, restoran"]
["Gas Bumi (Nm3)",3.8500000000000001E-5,"Industri, rumah tangga, restoran"]
["LPG (kg)",4.7299999999999998E-5,"Rumah tangga, restoran"]
["Batubara (ton)",1.89E-2,"Pembangkit Listrik, Industri"]

{"sheet":"Density","index":11,"n_rows":54,"n_cols":3,"rows_kept":54,"cut":false,"hidden":true,"merged":[]}
["Jenis Bahan Bakar","Density (kg/m3)","Density (kg/l)"]
["Minyak Mentah",840,0.84]
["Orimulsion",1200,1.2]
["LNG/CNG",468.1,0.46810000000000002]
["Premium",780,0.78]
["Pertalite",780,0.78]
["Pertamax",780,0.78]
["Pertamax Plus/Turbo",780,0.78]
["Avgas",721,0.72099999999999997]
["Avtur",810,0.81]
["Kerosin Jet",{"$f":"1615/2","v":807.5},0.8075]
["Kerosin Lain",786,0.78600000000000003]
["Shale oil",872.1,0.87209999999999999]
["Solar",832,0.83199999999999996]
["Residu",991,0.99099999999999999]
["LPG",540,0.54]
["Ethana",1178,1.2190000000000001]
["Nafta",770,0.77]
["Bitumen",1013,1.0129999999999999]
["Pelumas",800,0.8]
["Kokas",2230,2.23]
["Refinery feedstock",840,0.84]
["Refinery gas",525,0.52500000000000002]
["Parafin",916,0.91600000000000004]
["Solvent",790,0.79]
["Antrasit",1506,1.506]
["Arang Kokas",null,0]
["Batubara Bitumen",null,0]
["Batubara Sub-bitumen",null,0]
["Lignit",null,0]
["Bubuk Tar",null,0]
["Briket Batubara",null,0]
["Kokas Lignit",null,0]
["Kokas Gas",null,0]
["Tar Batubara",null,0]
["Gas Works Gas",null,0]
["Coke Oven Gas",null,0]
["Blast Furnace Gas",null,0]
["Oxygen Steel Furnace Gas",null,0]
["Gas Alam",null,0]
["Limbah Kota",null,0]
["Minyak Limbah",835,0.83499999999999996]
["Biodiesel",875,0.875]
["Biogasoline",875,0.875]
["Landfill Gas",null,0]
["Sludge Gas",null,0]
["Biogas Lainnya",null,0]
[]
["Biomass"]
["Gambut",1400,1.4]
["Kayu/Limbah Kayu",null,0]
["Arang Kayu",null,0]
["Biomass padat lain",null,0]
["Liquor Hitam",null,0]

{"sheet":"Nilai Kalor_NCV kg","index":12,"n_rows":52,"n_cols":2,"rows_kept":52,"cut":false,"hidden":true,"merged":[]}
["Jenis Bahan Bakar","Nilai Kalor (TJ/kg)"]
["Minyak Mentah",{"$f":"42.3/1000000","v":4.2299999999999998E-5}]
["Orimulsion",{"$f":"27.5/1000000","v":2.7500000000000001E-5}]
["LNG/CNG",{"$f":"44.2/1000000","v":4.4200000000000004E-5}]
["Premium",{"$f":"44.3/1000000","v":4.4299999999999999E-5}]
["Pertalite",{"$f":"44.3/1000000","v":4.4299999999999999E-5}]
["Pertamax",{"$f":"44.3/1000000","v":4.4299999999999999E-5}]
["Pertamax Plus/Turbo",4.4299999999999999E-5]
["Avgas",{"$f":"44.3/1000000","v":4.4299999999999999E-5}]
["Avtur",{"$f":"44.3/1000000","v":4.4299999999999999E-5}]
["Kerosin Jet",4.4100000000000001E-5]
["Kerosin Lain",{"$f":"43.8/1000000","v":4.3799999999999994E-5}]
["Shale oil",{"$f":"38.1/1000000","v":3.8100000000000005E-5}]
["Solar",{"$f":"43/1000000","v":4.3000000000000002E-5}]
["Residu",{"$f":"40.4/1000000","v":4.0399999999999999E-5}]
["LPG",{"$f":"47.3/1000000","v":4.7299999999999998E-5}]
["Ethana",{"$f":"46.4/1000000","v":4.6399999999999996E-5}]
["Nafta",{"$f":"44.5/1000000","v":4.4499999999999997E-5}]
["Bitumen",{"$f":"40.2/1000000","v":4.0200000000000001E-5}]
["Pelumas",{"$f":"40.2/1000000","v":4.0200000000000001E-5}]
["Kokas",{"$f":"32.5/1000000","v":3.2499999999999997E-5}]
["Refinery feedstock",{"$f":"43/1000000","v":4.3000000000000002E-5}]
["Refinery gas",{"$f":"49.5/1000000","v":4.9499999999999997E-5}]
["Parafin",{"$f":"40.2/1000000","v":4.0200000000000001E-5}]
["Solvent",{"$f":"40.2/1000000","v":4.0200000000000001E-5}]
["Antrasit",{"$f":"26.7/1000000","v":2.6699999999999998E-5}]
["Arang Kokas",{"$f":"28.2/1000000","v":2.8199999999999998E-5}]
["Batubara Bitumen",{"$f":"25.8/1000000","v":2.58E-5}]
["Batubara Sub-bitumen",{"$f":"18.9/1000000","v":1.8899999999999999E-5}]
["Lignit",{"$f":"11.9/1000000","v":1.19E-5}]
["Bubuk Tar",{"$f":"8.9/1000000","v":8.9000000000000012E-6}]
["Briket Batubara",{"$f":"20.7/1000000","v":2.0699999999999998E-5}]
["Kokas Lignit",{"$f":"28.2/1000000","v":2.8199999999999998E-5}]
["Kokas Gas",{"$f":"28.2/1000000","v":2.8199999999999998E-5}]
["Tar Batubara",{"$f":"28/1000000","v":2.8E-5}]
["Gas Works Gas",{"$f":"38.7/1000000","v":3.8700000000000006E-5}]
["Coke Oven Gas",{"$f":"38.7/1000000","v":3.8700000000000006E-5}]
["Blast Furnace Gas",{"$f":"2.47/1000000","v":2.4700000000000001E-6}]
["Oxygen Steel Furnace Gas",{"$f":"7.06/1000000","v":7.0599999999999993E-6}]
["Gas Alam",{"$f":"48/1000000","v":4.8000000000000001E-5}]
["Limbah Kota",{"$f":"10/1000000","v":1.0000000000000001E-5}]
["Minyak Limbah",{"$f":"40.2/1000000","v":4.0200000000000001E-5}]
["Biodiesel",{"$f":"27/1000000","v":2.6999999999999999E-5}]
["Biogasoline",{"$f":"27/1000000","v":2.6999999999999999E-5}]
["Landfill Gas",{"$f":"50.4/1000000","v":5.0399999999999999E-5}]
["Sludge Gas",{"$f":"50.4/1000000","v":5.0399999999999999E-5}]
["Biogas Lainnya",{"$f":"50.4/1000000","v":5.0399999999999999E-5}]
["Gambut",{"$f":"9.76/1000000","v":9.7599999999999997E-6}]
["Kayu/Limbah Kayu",{"$f":"15.6/1000000","v":1.56E-5}]
["Arang Kayu",{"$f":"29.5/1000000","v":2.9499999999999999E-5}]
["Biomass padat lain",{"$f":"11.6/1000000","v":1.1599999999999999E-5}]
["Liquor Hitam",{"$f":"11.8/1000000","v":1.1800000000000001E-5}]

{"sheet":"List Kota","index":13,"n_rows":109,"n_cols":9,"rows_kept":109,"cut":false,"hidden":true,"merged":[]}
["Sumber Energi",null,null,null,null,null,null,{"$f":"COUNTIF($I:$I,\"?*\")","v":1}]
["Bahan Bakar Fossil",null,null,null,null,{"$f":"IF(ISNUMBER(SEARCH('UI Tenaga Listrik'!$E$7,'List Kota'!G2)),MAX($F$1:F1)+1,0)","v":0},"Adonara - NTT",{"$f":"OFFSET($I$2,0,0,COUNTIF(I:I,\"?*\"),1)","v":"Lambuya - Sulawesi Tenggara"},{"$f":"IFERROR(VLOOKUP(ROWS($I$1:I1),$F$2:$G$109,2,FALSE),\"\")","v":"Lambuya - Sulawesi Tenggara"}]
["Biomassa",null,null,null,null,{"$f":"IF(ISNUMBER(SEARCH('UI Tenaga Listrik'!$E$7,'List Kota'!G3)),MAX($F$1:F2)+1,0)","v":0},"Alor - NTT",null,{"$f":"IFERROR(VLOOKUP(ROWS($I$1:I2),$F$2:$G$110,2,FALSE),\"\")","v":""}]
["Tenaga Listrik",null,null,null,null,{"$f":"IF(ISNUMBER(SEARCH('UI Tenaga Listrik'!$E$7,'List Kota'!G4)),MAX($F$1:F3)+1,0)","v":0},"Ambon - Maluku",null,{"$f":"IFERROR(VLOOKUP(ROWS($I$1:I3),$F$2:$G$110,2,FALSE),\"\")","v":""}]
[null,null,null,null,null,{"$f":"IF(ISNUMBER(SEARCH('UI Tenaga Listrik'!$E$7,'List Kota'!G5)),MAX($F$1:F4)+1,0)","v":0},"Bangka - Bangka Belitung",null,{"$f":"IFERROR(VLOOKUP(ROWS($I$1:I4),$F$2:$G$110,2,FALSE),\"\")","v":""}]
["Tipe Equipment",null,null,null,null,{"$f":"IF(ISNUMBER(SEARCH('UI Tenaga Listrik'!$E$7,'List Kota'!G6)),MAX($F$1:F5)+1,0)","v":0},"Barito - Kalimantan Tengah",null,{"$f":"IFERROR(VLOOKUP(ROWS($I$1:I5),$F$2:$G$110,2,FALSE),\"\")","v":""}]
["Tak Bergerak",null,null,null,null,{"$f":"IF(ISNUMBER(SEARCH('UI Tenaga Listrik'!$E$7,'List Kota'!G7)),MAX($F$1:F6)+1,0)","v":0},"Batam - Kep. Riau",null,{"$f":"IFERROR(VLOOKUP(ROWS($I$1:I6),$F$2:$G$110,2,FALSE),\"\")","v":""}]
["Bergerak",null,null,null,null,{"$f":"IF(ISNUMBER(SEARCH('UI Tenaga Listrik'!$E$7,'List Kota'!G8)),MAX($F$1:F7)+1,0)","v":0},"Bau-Bau - Sulawesi Tenggara",null,{"$f":"IFERROR(VLOOKUP(ROWS($I$1:I7),$F$2:$G$110,2,FALSE),\"\")","v":""}]
[null,null,null,null,null,{"$f":"IF(ISNUMBER(SEARCH('UI Tenaga Listrik'!$E$7,'List Kota'!G9)),MAX($F$1:F8)+1,0)","v":0},"Belitung - Bangka Belitung",null,{"$f":"IFERROR(VLOOKUP(ROWS($I$1:I8),$F$2:$G$110,2,FALSE),\"\")","v":""}]
["liter",null,null,null,null,{"$f":"IF(ISNUMBER(SEARCH('UI Tenaga Listrik'!$E$7,'List Kota'!G10)),MAX($F$1:F9)+1,0)","v":0},"Bengkalis - Riau",null,{"$f":"IFERROR(VLOOKUP(ROWS($I$1:I9),$F$2:$G$110,2,FALSE),\"\")","v":""}]
["kilogram",null,null,null,null,{"$f":"IF(ISNUMBER(SEARCH('UI Tenaga Listrik'!$E$7,'List Kota'!G11)),MAX($F$1:F10)+1,0)","v":0},"Biak - Papua",null,{"$f":"IFERROR(VLOOKUP(ROWS($I$1:I10),$F$2:$G$110,2,FALSE),\"\")","v":""}]
[null,null,null,null,null,{"$f":"IF(ISNUMBER(SEARCH('UI Tenaga Listrik'!$E$7,'List Kota'!G12)),MAX($F$1:F11)+1,0)","v":0},"Bima - NTB",null,{"$f":"IFERROR(VLOOKUP(ROWS($I$1:I11),$F$2:$G$110,2,FALSE),\"\")","v":""}]
[null,null,null,null,null,{"$f":"IF(ISNUMBER(SEARCH('UI Tenaga Listrik'!$E$7,'List Kota'!G13)),MAX($F$1:F12)+1,0)","v":0},"Bualemo - Sulawesi Tengah",null,{"$f":"IFERROR(VLOOKUP(ROWS($I$1:I12),$F$2:$G$110,2,FALSE),\"\")","v":""}]
[null,null,null,null,null,{"$f":"IF(ISNUMBER(SEARCH('UI Tenaga Listrik'!$E$7,'List Kota'!G14)),MAX($F$1:F13)+1,0)","v":0},"Buano - Maluku",null,{"$f":"IFERROR(VLOOKUP(ROWS($I$1:I13),$F$2:$G$110,2,FALSE),\"\")","v":""}]
[null,null,null,null,null,{"$f":"IF(ISNUMBER(SEARCH('UI Tenaga Listrik'!$E$7,'List Kota'!G15)),MAX($F$1:F14)+1,0)","v":0},"Buli - Maluku Utara",null,{"$f":"IFERROR(VLOOKUP(ROWS($I$1:I14),$F$2:$G$110,2,FALSE),\"\")","v":""}]
[null,null,null,null,null,{"$f":"IF(ISNUMBER(SEARCH('UI Tenaga Listrik'!$E$7,'List Kota'!G16)),MAX($F$1:F15)+1,0)","v":0},"Concong Luar - Riau",null,{"$f":"IFERROR(VLOOKUP(ROWS($I$1:I15),$F$2:$G$110,2,FALSE),\"\")","v":""}]
[null,null,null,null,null,{"$f":"IF(ISNUMBER(SEARCH('UI Tenaga Listrik'!$E$7,'List Kota'!G17)),MAX($F$1:F16)+1,0)","v":0},"Dabo Singkep - Kep.Riau",null,{"$f":"IFERROR(VLOOKUP(ROWS($I$1:I16),$F$2:$G$110,2,FALSE),\"\")","v":""}]
[null,null,null,null,null,{"$f":"IF(ISNUMBER(SEARCH('UI Tenaga Listrik'!$E$7,'List Kota'!G18)),MAX($F$1:F17)+1,0)","v":0},"Daruba - Maluku Utara",null,{"$f":"IFERROR(VLOOKUP(ROWS($I$1:I17),$F$2:$G$110,2,FALSE),\"\")","v":""}]
[null,null,null,null,null,{"$f":"IF(ISNUMBER(SEARCH('UI Tenaga Listrik'!$E$7,'List Kota'!G19)),MAX($F$1:F18)+1,0)","v":0},"Dobo - Maluku",null,{"$f":"IFERROR(VLOOKUP(ROWS($I$1:I18),$F$2:$G$110,2,FALSE),\"\")","v":""}]
[null,null,null,null,null,{"$f":"IF(ISNUMBER(SEARCH('UI Tenaga Listrik'!$E$7,'List Kota'!G20)),MAX($F$1:F19)+1,0)","v":0},"Ende - NTT",null,{"$f":"IFERROR(VLOOKUP(ROWS($I$1:I19),$F$2:$G$110,2,FALSE),\"\")","v":""}]
[null,null,null,null,null,{"$f":"IF(ISNUMBER(SEARCH('UI Tenaga Listrik'!$E$7,'List Kota'!G21)),MAX($F$1:F20)+1,0)","v":0},"Ibu - Maluku Utara",null,{"$f":"IFERROR(VLOOKUP(ROWS($I$1:I20),$F$2:$G$110,2,FALSE),\"\")","v":""}]
[null,null,null,null,null,{"$f":"IF(ISNUMBER(SEARCH('UI Tenaga Listrik'!$E$7,'List Kota'!G22)),MAX($F$1:F21)+1,0)","v":0},"Ipuh - Bengkulu",null,{"$f":"IFERROR(VLOOKUP(ROWS($I$1:I21),$F$2:$G$110,2,FALSE),\"\")","v":""}]
[null,null,null,null,null,{"$f":"IF(ISNUMBER(SEARCH('UI Tenaga Listrik'!$E$7,'List Kota'!G23)),MAX($F$1:F22)+1,0)","v":0},"Banten",null,{"$f":"IFERROR(VLOOKUP(ROWS($I$1:I22),$F$2:$G$110,2,FALSE),\"\")","v":""}]
[null,null,null,null,null,{"$f":"IF(ISNUMBER(SEARCH('UI Tenaga Listrik'!$E$7,'List Kota'!G24)),MAX($F$1:F23)+1,0)","v":0},"DKI Jakarta",null,{"$f":"IFERROR(VLOOKUP(ROWS($I$1:I23),$F$2:$G$110,2,FALSE),\"\")","v":""}]
[null,null,null,null,null,{"$f":"IF(ISNUMBER(SEARCH('UI Tenaga Listrik'!$E$7,'List Kota'!G25)),MAX($F$1:F24)+1,0)","v":0},"Jawa Barat",null,{"$f":"IFERROR(VLOOKUP(ROWS($I$1:I24),$F$2:$G$110,2,FALSE),\"\")","v":""}]
[null,null,null,null,null,{"$f":"IF(ISNUMBER(SEARCH('UI Tenaga Listrik'!$E$7,'List Kota'!G26)),MAX($F$1:F25)+1,0)","v":0},"Jawa Tengah",null,{"$f":"IFERROR(VLOOKUP(ROWS($I$1:I25),$F$2:$G$110,2,FALSE),\"\")","v":""}]
[null,null,null,null,null,{"$f":"IF(ISNUMBER(SEARCH('UI Tenaga Listrik'!$E$7,'List Kota'!G27)),MAX($F$1:F26)+1,0)","v":0},"DI Yogyakarta",null,{"$f":"IFERROR(VLOOKUP(ROWS($I$1:I26),$F$2:$G$110,2,FALSE),\"\")","v":""}]
[null,null,null,null,null,{"$f":"IF(ISNUMBER(SEARCH('UI Tenaga Listrik'!$E$7,'List Kota'!G28)),MAX($F$1:F27)+1,0)","v":0},"Jawa Timur",null,{"$f":"IFERROR(VLOOKUP(ROWS($I$1:I27),$F$2:$G$110,2,FALSE),\"\")","v":""}]
[null,null,null,null,null,{"$f":"IF(ISNUMBER(SEARCH('UI Tenaga Listrik'!$E$7,'List Kota'!G29)),MAX($F$1:F28)+1,0)","v":0},"Jayapura - Papua",null,{"$f":"IFERROR(VLOOKUP(ROWS($I$1:I28),$F$2:$G$110,2,FALSE),\"\")","v":""}]
[null,null,null,null,null,{"$f":"IF(ISNUMBER(SEARCH('UI Tenaga Listrik'!$E$7,'List Kota'!G30)),MAX($F$1:F29)+1,0)","v":0},"Karakelang - Sulawesi Utara",null,{"$f":"IFERROR(VLOOKUP(ROWS($I$1:I29),$F$2:$G$110,2,FALSE),\"\")","v":""}]
[null,null,null,null,null,{"$f":"IF(ISNUMBER(SEARCH('UI Tenaga Listrik'!$E$7,'List Kota'!G31)),MAX($F$1:F30)+1,0)","v":0},"Kendari - Sulawesi Tenggara",null,{"$f":"IFERROR(VLOOKUP(ROWS($I$1:I30),$F$2:$G$110,2,FALSE),\"\")","v":""}]
[null,null,null,null,null,{"$f":"IF(ISNUMBER(SEARCH('UI Tenaga Listrik'!$E$7,'List Kota'!G32)),MAX($F$1:F31)+1,0)","v":0},"Kesui - Maluku",null,{"$f":"IFERROR(VLOOKUP(ROWS($I$1:I31),$F$2:$G$110,2,FALSE),\"\")","v":""}]
[null,null,null,null,null,{"$f":"IF(ISNUMBER(SEARCH('UI Tenaga Listrik'!$E$7,'List Kota'!G33)),MAX($F$1:F32)+1,0)","v":0},"Pontianak - KalBar",null,{"$f":"IFERROR(VLOOKUP(ROWS($I$1:I32),$F$2:$G$110,2,FALSE),\"\")","v":""}]
[null,null,null,null,null,{"$f":"IF(ISNUMBER(SEARCH('UI Tenaga Listrik'!$E$7,'List Kota'!G34)),MAX($F$1:F33)+1,0)","v":0},"Kian Darat - Maluku",null,{"$f":"IFERROR(VLOOKUP(ROWS($I$1:I33),$F$2:$G$110,2,FALSE),\"\")","v":""}]
[null,null,null,null,null,{"$f":"IF(ISNUMBER(SEARCH('UI Tenaga Listrik'!$E$7,'List Kota'!G35)),MAX($F$1:F34)+1,0)","v":0},"Kisar - Maluku",null,{"$f":"IFERROR(VLOOKUP(ROWS($I$1:I34),$F$2:$G$110,2,FALSE),\"\")","v":""}]
[null,null,null,null,null,{"$f":"IF(ISNUMBER(SEARCH('UI Tenaga Listrik'!$E$7,'List Kota'!G36)),MAX($F$1:F35)+1,0)","v":0},"Kobisonta - Maluku",null,{"$f":"IFERROR(VLOOKUP(ROWS($I$1:I35),$F$2:$G$110,2,FALSE),\"\")","v":""}]
[null,null,null,null,null,{"$f":"IF(ISNUMBER(SEARCH('UI Tenaga Listrik'!$E$7,'List Kota'!G37)),MAX($F$1:F36)+1,0)","v":0},"Kolaka - Sulawesi Tenggara",null,{"$f":"IFERROR(VLOOKUP(ROWS($I$1:I36),$F$2:$G$110,2,FALSE),\"\")","v":""}]
[null,null,null,null,null,{"$f":"IF(ISNUMBER(SEARCH('UI Tenaga Listrik'!$E$7,'List Kota'!G38)),MAX($F$1:F37)+1,0)","v":0},"Kota Bani - Bengkulu",null,{"$f":"IFERROR(VLOOKUP(ROWS($I$1:I37),$F$2:$G$110,2,FALSE),\"\")","v":""}]
[null,null,null,null,null,{"$f":"IF(ISNUMBER(SEARCH('UI Tenaga Listrik'!$E$7,'List Kota'!G39)),MAX($F$1:F38)+1,0)","v":0},"Kota Lama - Riau",null,{"$f":"IFERROR(VLOOKUP(ROWS($I$1:I38),$F$2:$G$110,2,FALSE),\"\")","v":""}]
[null,null,null,null,null,{"$f":"IF(ISNUMBER(SEARCH('UI Tenaga Listrik'!$E$7,'List Kota'!G40)),MAX($F$1:F39)+1,0)","v":0},"Kotaraya - Sulawesi Tengah",null,{"$f":"IFERROR(VLOOKUP(ROWS($I$1:I39),$F$2:$G$110,2,FALSE),\"\")","v":""}]
[null,null,null,null,null,{"$f":"IF(ISNUMBER(SEARCH('UI Tenaga Listrik'!$E$7,'List Kota'!G41)),MAX($F$1:F40)+1,0)","v":0},"Ladan - Kep. Riau",null,{"$f":"IFERROR(VLOOKUP(ROWS($I$1:I40),$F$2:$G$110,2,FALSE),\"\")","v":""}]
[null,null,null,null,null,{"$f":"IF(ISNUMBER(SEARCH('UI Tenaga Listrik'!$E$7,'List Kota'!G42)),MAX($F$1:F41)+1,0)","v":0},"Laimu - Maluku",null,{"$f":"IFERROR(VLOOKUP(ROWS($I$1:I41),$F$2:$G$110,2,FALSE),\"\")","v":""}]
[null,null,null,null,null,{"$f":"IF(ISNUMBER(SEARCH('UI Tenaga Listrik'!$E$7,'List Kota'!G43)),MAX($F$1:F42)+1,0)","v":1},"Lambuya - Sulawesi Tenggara",null,{"$f":"IFERROR(VLOOKUP(ROWS($I$1:I42),$F$2:$G$110,2,FALSE),\"\")","v":""}]
[null,null,null,null,null,{"$f":"IF(ISNUMBER(SEARCH('UI Tenaga Listrik'!$E$7,'List Kota'!G44)),MAX($F$1:F43)+1,0)","v":0},"Lelang - Sulawesi Tengah",null,{"$f":"IFERROR(VLOOKUP(ROWS($I$1:I43),$F$2:$G$110,2,FALSE),\"\")","v":""}]
[null,null,null,null,null,{"$f":"IF(ISNUMBER(SEARCH('UI Tenaga Listrik'!$E$7,'List Kota'!G45)),MAX($F$1:F44)+1,0)","v":0},"Lemang - Riau",null,{"$f":"IFERROR(VLOOKUP(ROWS($I$1:I44),$F$2:$G$110,2,FALSE),\"\")","v":""}]
[null,null,null,null,null,{"$f":"IF(ISNUMBER(SEARCH('UI Tenaga Listrik'!$E$7,'List Kota'!G46)),MAX($F$1:F45)+1,0)","v":0},"Letung - Kepulauan Riau",null,{"$f":"IFERROR(VLOOKUP(ROWS($I$1:I45),$F$2:$G$110,2,FALSE),\"\")","v":""}]
[null,null,null,null,null,{"$f":"IF(ISNUMBER(SEARCH('UI Tenaga Listrik'!$E$7,'List Kota'!G47)),MAX($F$1:F46)+1,0)","v":0},"Lirung - Sulawesi Utara",null,{"$f":"IFERROR(VLOOKUP(ROWS($I$1:I46),$F$2:$G$110,2,FALSE),\"\")","v":""}]
[null,null,null,null,null,{"$f":"IF(ISNUMBER(SEARCH('UI Tenaga Listrik'!$E$7,'List Kota'!G48)),MAX($F$1:F47)+1,0)","v":0},"Lombok - NTB",null,{"$f":"IFERROR(VLOOKUP(ROWS($I$1:I47),$F$2:$G$110,2,FALSE),\"\")","v":""}]
[null,null,null,null,null,{"$f":"IF(ISNUMBER(SEARCH('UI Tenaga Listrik'!$E$7,'List Kota'!G49)),MAX($F$1:F48)+1,0)","v":0},"Lumbi-lumbia - SulTeng",null,{"$f":"IFERROR(VLOOKUP(ROWS($I$1:I48),$F$2:$G$110,2,FALSE),\"\")","v":""}]
[null,null,null,null,null,{"$f":"IF(ISNUMBER(SEARCH('UI Tenaga Listrik'!$E$7,'List Kota'!G50)),MAX($F$1:F49)+1,0)","v":0},"Luwuk - Sulawesi Tengah",null,{"$f":"IFERROR(VLOOKUP(ROWS($I$1:I49),$F$2:$G$110,2,FALSE),\"\")","v":""}]
[null,null,null,null,null,{"$f":"IF(ISNUMBER(SEARCH('UI Tenaga Listrik'!$E$7,'List Kota'!G51)),MAX($F$1:F50)+1,0)","v":0},"Mahakam - Kalimantan Timur",null,{"$f":"IFERROR(VLOOKUP(ROWS($I$1:I50),$F$2:$G$110,2,FALSE),\"\")","v":""}]
[null,null,null,null,null,{"$f":"IF(ISNUMBER(SEARCH('UI Tenaga Listrik'!$E$7,'List Kota'!G52)),MAX($F$1:F51)+1,0)","v":0},"Mangaran - Sulawesi Utara",null,{"$f":"IFERROR(VLOOKUP(ROWS($I$1:I51),$F$2:$G$110,2,FALSE),\"\")","v":""}]
[null,null,null,null,null,{"$f":"IF(ISNUMBER(SEARCH('UI Tenaga Listrik'!$E$7,'List Kota'!G53)),MAX($F$1:F52)+1,0)","v":0},"Manokwari - Papua Barat",null,{"$f":"IFERROR(VLOOKUP(ROWS($I$1:I52),$F$2:$G$110,2,FALSE),\"\")","v":""}]
[null,null,null,null,null,{"$f":"IF(ISNUMBER(SEARCH('UI Tenaga Listrik'!$E$7,'List Kota'!G54)),MAX($F$1:F53)+1,0)","v":0},"Maumere - NTT",null,{"$f":"IFERROR(VLOOKUP(ROWS($I$1:I53),$F$2:$G$110,2,FALSE),\"\")","v":""}]
[null,null,null,null,null,{"$f":"IF(ISNUMBER(SEARCH('UI Tenaga Listrik'!$E$7,'List Kota'!G55)),MAX($F$1:F54)+1,0)","v":0},"Merauke - Papua",null,{"$f":"IFERROR(VLOOKUP(ROWS($I$1:I54),$F$2:$G$110,2,FALSE),\"\")","v":""}]
[null,null,null,null,null,{"$f":"IF(ISNUMBER(SEARCH('UI Tenaga Listrik'!$E$7,'List Kota'!G56)),MAX($F$1:F55)+1,0)","v":0},"Moa - Maluku",null,{"$f":"IFERROR(VLOOKUP(ROWS($I$1:I55),$F$2:$G$110,2,FALSE),\"\")","v":""}]
[null,null,null,null,null,{"$f":"IF(ISNUMBER(SEARCH('UI Tenaga Listrik'!$E$7,'List Kota'!G57)),MAX($F$1:F56)+1,0)","v":0},"Nabire - Papua",null,{"$f":"IFERROR(VLOOKUP(ROWS($I$1:I56),$F$2:$G$110,2,FALSE),\"\")","v":""}]
[null,null,null,null,null,{"$f":"IF(ISNUMBER(SEARCH('UI Tenaga Listrik'!$E$7,'List Kota'!G58)),MAX($F$1:F57)+1,0)","v":0},"Namlea - Maluku",null,{"$f":"IFERROR(VLOOKUP(ROWS($I$1:I57),$F$2:$G$110,2,FALSE),\"\")","v":""}]
[null,null,null,null,null,{"$f":"IF(ISNUMBER(SEARCH('UI Tenaga Listrik'!$E$7,'List Kota'!G59)),MAX($F$1:F58)+1,0)","v":0},"Nias - Sumatera Utara",null,{"$f":"IFERROR(VLOOKUP(ROWS($I$1:I58),$F$2:$G$110,2,FALSE),\"\")","v":""}]
[null,null,null,null,null,{"$f":"IF(ISNUMBER(SEARCH('UI Tenaga Listrik'!$E$7,'List Kota'!G60)),MAX($F$1:F59)+1,0)","v":0},"Pagai Selatan - Sum. Barat",null,{"$f":"IFERROR(VLOOKUP(ROWS($I$1:I59),$F$2:$G$110,2,FALSE),\"\")","v":""}]
[null,null,null,null,null,{"$f":"IF(ISNUMBER(SEARCH('UI Tenaga Listrik'!$E$7,'List Kota'!G61)),MAX($F$1:F60)+1,0)","v":0},"Palu - Sulawesi Tengah",null,{"$f":"IFERROR(VLOOKUP(ROWS($I$1:I60),$F$2:$G$110,2,FALSE),\"\")","v":""}]
[null,null,null,null,null,{"$f":"IF(ISNUMBER(SEARCH('UI Tenaga Listrik'!$E$7,'List Kota'!G62)),MAX($F$1:F61)+1,0)","v":0},"Pulau Buru - Maluku",null,{"$f":"IFERROR(VLOOKUP(ROWS($I$1:I61),$F$2:$G$110,2,FALSE),\"\")","v":""}]
[null,null,null,null,null,{"$f":"IF(ISNUMBER(SEARCH('UI Tenaga Listrik'!$E$7,'List Kota'!G63)),MAX($F$1:F62)+1,0)","v":0},"Pulau Halang - Riau",null,{"$f":"IFERROR(VLOOKUP(ROWS($I$1:I62),$F$2:$G$110,2,FALSE),\"\")","v":""}]
[null,null,null,null,null,{"$f":"IF(ISNUMBER(SEARCH('UI Tenaga Listrik'!$E$7,'List Kota'!G64)),MAX($F$1:F63)+1,0)","v":0},"Pulau Tello - SulSel",null,{"$f":"IFERROR(VLOOKUP(ROWS($I$1:I63),$F$2:$G$110,2,FALSE),\"\")","v":""}]
[null,null,null,null,null,{"$f":"IF(ISNUMBER(SEARCH('UI Tenaga Listrik'!$E$7,'List Kota'!G65)),MAX($F$1:F64)+1,0)","v":0},"Raha - Sulawesi Tenggara",null,{"$f":"IFERROR(VLOOKUP(ROWS($I$1:I64),$F$2:$G$110,2,FALSE),\"\")","v":""}]
[null,null,null,null,null,{"$f":"IF(ISNUMBER(SEARCH('UI Tenaga Listrik'!$E$7,'List Kota'!G66)),MAX($F$1:F65)+1,0)","v":0},"Ranai - Kepulauan Riau",null,{"$f":"IFERROR(VLOOKUP(ROWS($I$1:I65),$F$2:$G$110,2,FALSE),\"\")","v":""}]
[null,null,null,null,null,{"$f":"IF(ISNUMBER(SEARCH('UI Tenaga Listrik'!$E$7,'List Kota'!G67)),MAX($F$1:F66)+1,0)","v":0},"S Nasik - Bangka Belitung",null,{"$f":"IFERROR(VLOOKUP(ROWS($I$1:I66),$F$2:$G$110,2,FALSE),\"\")","v":""}]
[null,null,null,null,null,{"$f":"IF(ISNUMBER(SEARCH('UI Tenaga Listrik'!$E$7,'List Kota'!G68)),MAX($F$1:F67)+1,0)","v":0},"Saumlaki - Maluku",null,{"$f":"IFERROR(VLOOKUP(ROWS($I$1:I67),$F$2:$G$110,2,FALSE),\"\")","v":""}]
[null,null,null,null,null,{"$f":"IF(ISNUMBER(SEARCH('UI Tenaga Listrik'!$E$7,'List Kota'!G69)),MAX($F$1:F68)+1,0)","v":0},"Selat Panjang - Riau",null,{"$f":"IFERROR(VLOOKUP(ROWS($I$1:I68),$F$2:$G$110,2,FALSE),\"\")","v":""}]
[null,null,null,null,null,{"$f":"IF(ISNUMBER(SEARCH('UI Tenaga Listrik'!$E$7,'List Kota'!G70)),MAX($F$1:F69)+1,0)","v":0},"Serui - Papua",null,{"$f":"IFERROR(VLOOKUP(ROWS($I$1:I69),$F$2:$G$110,2,FALSE),\"\")","v":""}]
[null,null,null,null,null,{"$f":"IF(ISNUMBER(SEARCH('UI Tenaga Listrik'!$E$7,'List Kota'!G71)),MAX($F$1:F70)+1,0)","v":0},"Siberut - Sumatera Barat",null,{"$f":"IFERROR(VLOOKUP(ROWS($I$1:I70),$F$2:$G$110,2,FALSE),\"\")","v":""}]
[null,null,null,null,null,{"$f":"IF(ISNUMBER(SEARCH('UI Tenaga Listrik'!$E$7,'List Kota'!G72)),MAX($F$1:F71)+1,0)","v":0},"Siberut Utara - Sum. Barat",null,{"$f":"IFERROR(VLOOKUP(ROWS($I$1:I71),$F$2:$G$110,2,FALSE),\"\")","v":""}]
[null,null,null,null,null,{"$f":"IF(ISNUMBER(SEARCH('UI Tenaga Listrik'!$E$7,'List Kota'!G73)),MAX($F$1:F72)+1,0)","v":0},"Sipora - Sumatera Barat",null,{"$f":"IFERROR(VLOOKUP(ROWS($I$1:I72),$F$2:$G$110,2,FALSE),\"\")","v":""}]
[null,null,null,null,null,{"$f":"IF(ISNUMBER(SEARCH('UI Tenaga Listrik'!$E$7,'List Kota'!G74)),MAX($F$1:F73)+1,0)","v":0},"Sorong - Papua Barat",null,{"$f":"IFERROR(VLOOKUP(ROWS($I$1:I73),$F$2:$G$110,2,FALSE),\"\")","v":""}]
[null,null,null,null,null,{"$f":"IF(ISNUMBER(SEARCH('UI Tenaga Listrik'!$E$7,'List Kota'!G75)),MAX($F$1:F74)+1,0)","v":0},"Sulawesi Selatan",null,{"$f":"IFERROR(VLOOKUP(ROWS($I$1:I74),$F$2:$G$110,2,FALSE),\"\")","v":""}]
[null,null,null,null,null,{"$f":"IF(ISNUMBER(SEARCH('UI Tenaga Listrik'!$E$7,'List Kota'!G76)),MAX($F$1:F75)+1,0)","v":0},"Sulawesi Barat",null,{"$f":"IFERROR(VLOOKUP(ROWS($I$1:I75),$F$2:$G$110,2,FALSE),\"\")","v":""}]
[null,null,null,null,null,{"$f":"IF(ISNUMBER(SEARCH('UI Tenaga Listrik'!$E$7,'List Kota'!G77)),MAX($F$1:F76)+1,0)","v":0},"Sulawesi Utara",null,{"$f":"IFERROR(VLOOKUP(ROWS($I$1:I76),$F$2:$G$110,2,FALSE),\"\")","v":""}]
[null,null,null,null,null,{"$f":"IF(ISNUMBER(SEARCH('UI Tenaga Listrik'!$E$7,'List Kota'!G78)),MAX($F$1:F77)+1,0)","v":0},"Gorontalo",null,{"$f":"IFERROR(VLOOKUP(ROWS($I$1:I77),$F$2:$G$110,2,FALSE),\"\")","v":""}]
[null,null,null,null,null,{"$f":"IF(ISNUMBER(SEARCH('UI Tenaga Listrik'!$E$7,'List Kota'!G79)),MAX($F$1:F78)+1,0)","v":0},"Aceh",null,{"$f":"IFERROR(VLOOKUP(ROWS($I$1:I78),$F$2:$G$110,2,FALSE),\"\")","v":""}]
[null,null,null,null,null,{"$f":"IF(ISNUMBER(SEARCH('UI Tenaga Listrik'!$E$7,'List Kota'!G80)),MAX($F$1:F79)+1,0)","v":0},"Bengkulu",null,{"$f":"IFERROR(VLOOKUP(ROWS($I$1:I79),$F$2:$G$110,2,FALSE),\"\")","v":""}]
[null,null,null,null,null,{"$f":"IF(ISNUMBER(SEARCH('UI Tenaga Listrik'!$E$7,'List Kota'!G81)),MAX($F$1:F80)+1,0)","v":0},"Jambi",null,{"$f":"IFERROR(VLOOKUP(ROWS($I$1:I80),$F$2:$G$110,2,FALSE),\"\")","v":""}]
[null,null,null,null,null,{"$f":"IF(ISNUMBER(SEARCH('UI Tenaga Listrik'!$E$7,'List Kota'!G82)),MAX($F$1:F81)+1,0)","v":0},"Lampung",null,{"$f":"IFERROR(VLOOKUP(ROWS($I$1:I81),$F$2:$G$110,2,FALSE),\"\")","v":""}]
[null,null,null,null,null,{"$f":"IF(ISNUMBER(SEARCH('UI Tenaga Listrik'!$E$7,'List Kota'!G83)),MAX($F$1:F82)+1,0)","v":0},"Riau",null,{"$f":"IFERROR(VLOOKUP(ROWS($I$1:I82),$F$2:$G$110,2,FALSE),\"\")","v":""}]
[null,null,null,null,null,{"$f":"IF(ISNUMBER(SEARCH('UI Tenaga Listrik'!$E$7,'List Kota'!G84)),MAX($F$1:F83)+1,0)","v":0},"Sumatera Barat",null,{"$f":"IFERROR(VLOOKUP(ROWS($I$1:I83),$F$2:$G$110,2,FALSE),\"\")","v":""}]
[null,null,null,null,null,{"$f":"IF(ISNUMBER(SEARCH('UI Tenaga Listrik'!$E$7,'List Kota'!G85)),MAX($F$1:F84)+1,0)","v":0},"Sumatera Selatan",null,{"$f":"IFERROR(VLOOKUP(ROWS($I$1:I84),$F$2:$G$110,2,FALSE),\"\")","v":""}]
[null,null,null,null,null,{"$f":"IF(ISNUMBER(SEARCH('UI Tenaga Listrik'!$E$7,'List Kota'!G86)),MAX($F$1:F85)+1,0)","v":0},"Sumatera Utara",null,{"$f":"IFERROR(VLOOKUP(ROWS($I$1:I85),$F$2:$G$110,2,FALSE),\"\")","v":""}]
[null,null,null,null,null,{"$f":"IF(ISNUMBER(SEARCH('UI Tenaga Listrik'!$E$7,'List Kota'!G87)),MAX($F$1:F86)+1,0)","v":0},"Sumbawa - NTB",null,{"$f":"IFERROR(VLOOKUP(ROWS($I$1:I86),$F$2:$G$110,2,FALSE),\"\")","v":""}]
[null,null,null,null,null,{"$f":"IF(ISNUMBER(SEARCH('UI Tenaga Listrik'!$E$7,'List Kota'!G88)),MAX($F$1:F87)+1,0)","v":0},"Tagulandang - SulUt",null,{"$f":"IFERROR(VLOOKUP(ROWS($I$1:I87),$F$2:$G$110,2,FALSE),\"\")","v":""}]
[null,null,null,null,null,{"$f":"IF(ISNUMBER(SEARCH('UI Tenaga Listrik'!$E$7,'List Kota'!G89)),MAX($F$1:F88)+1,0)","v":0},"Tahuna - Sulawesi Utara",null,{"$f":"IFERROR(VLOOKUP(ROWS($I$1:I88),$F$2:$G$110,2,FALSE),\"\")","v":""}]
[null,null,null,null,null,{"$f":"IF(ISNUMBER(SEARCH('UI Tenaga Listrik'!$E$7,'List Kota'!G90)),MAX($F$1:F89)+1,0)","v":0},"Tambelan - Kepulauan Riau",null,{"$f":"IFERROR(VLOOKUP(ROWS($I$1:I89),$F$2:$G$110,2,FALSE),\"\")","v":""}]
[null,null,null,null,null,{"$f":"IF(ISNUMBER(SEARCH('UI Tenaga Listrik'!$E$7,'List Kota'!G91)),MAX($F$1:F90)+1,0)","v":0},"Taniwel - Maluku",null,{"$f":"IFERROR(VLOOKUP(ROWS($I$1:I90),$F$2:$G$110,2,FALSE),\"\")","v":""}]
[null,null,null,null,null,{"$f":"IF(ISNUMBER(SEARCH('UI Tenaga Listrik'!$E$7,'List Kota'!G92)),MAX($F$1:F91)+1,0)","v":0},"Tanjung Balai Karimun",null,{"$f":"IFERROR(VLOOKUP(ROWS($I$1:I91),$F$2:$G$110,2,FALSE),\"\")","v":""}]
[null,null,null,null,null,{"$f":"IF(ISNUMBER(SEARCH('UI Tenaga Listrik'!$E$7,'List Kota'!G93)),MAX($F$1:F92)+1,0)","v":0},"Tanjung Batu - Kep. Riau",null,{"$f":"IFERROR(VLOOKUP(ROWS($I$1:I92),$F$2:$G$110,2,FALSE),\"\")","v":""}]
[null,null,null,null,null,{"$f":"IF(ISNUMBER(SEARCH('UI Tenaga Listrik'!$E$7,'List Kota'!G94)),MAX($F$1:F93)+1,0)","v":0},"Tanjung Samak - Riau",null,{"$f":"IFERROR(VLOOKUP(ROWS($I$1:I93),$F$2:$G$110,2,FALSE),\"\")","v":""}]
[null,null,null,null,null,{"$f":"IF(ISNUMBER(SEARCH('UI Tenaga Listrik'!$E$7,'List Kota'!G95)),MAX($F$1:F94)+1,0)","v":0},"Tarakan - Kalimantan Utara",null,{"$f":"IFERROR(VLOOKUP(ROWS($I$1:I94),$F$2:$G$110,2,FALSE),\"\")","v":""}]
[null,null,null,null,null,{"$f":"IF(ISNUMBER(SEARCH('UI Tenaga Listrik'!$E$7,'List Kota'!G96)),MAX($F$1:F95)+1,0)","v":0},"Tehoru - Maluku",null,{"$f":"IFERROR(VLOOKUP(ROWS($I$1:I95),$F$2:$G$110,2,FALSE),\"\")","v":""}]
[null,null,null,null,null,{"$f":"IF(ISNUMBER(SEARCH('UI Tenaga Listrik'!$E$7,'List Kota'!G97)),MAX($F$1:F96)+1,0)","v":0},"Teluk Ketapang - Riau",null,{"$f":"IFERROR(VLOOKUP(ROWS($I$1:I96),$F$2:$G$110,2,FALSE),\"\")","v":""}]
[null,null,null,null,null,{"$f":"IF(ISNUMBER(SEARCH('UI Tenaga Listrik'!$E$7,'List Kota'!G98)),MAX($F$1:F97)+1,0)","v":0},"Ternate -Tidore",null,{"$f":"IFERROR(VLOOKUP(ROWS($I$1:I97),$F$2:$G$110,2,FALSE),\"\")","v":""}]
[null,null,null,null,null,{"$f":"IF(ISNUMBER(SEARCH('UI Tenaga Listrik'!$E$7,'List Kota'!G99)),MAX($F$1:F98)+1,0)","v":0},"Timika - Papua",null,{"$f":"IFERROR(VLOOKUP(ROWS($I$1:I98),$F$2:$G$110,2,FALSE),\"\")","v":""}]
[null,null,null,null,null,{"$f":"IF(ISNUMBER(SEARCH('UI Tenaga Listrik'!$E$7,'List Kota'!G100)),MAX($F$1:F99)+1,0)","v":0},"Timor - NTT",null,{"$f":"IFERROR(VLOOKUP(ROWS($I$1:I99),$F$2:$G$110,2,FALSE),\"\")","v":""}]
[null,null,null,null,null,{"$f":"IF(ISNUMBER(SEARCH('UI Tenaga Listrik'!$E$7,'List Kota'!G101)),MAX($F$1:F100)+1,0)","v":0},"Tobelo - Maluku Utara",null,{"$f":"IFERROR(VLOOKUP(ROWS($I$1:I100),$F$2:$G$110,2,FALSE),\"\")","v":""}]
[null,null,null,null,null,{"$f":"IF(ISNUMBER(SEARCH('UI Tenaga Listrik'!$E$7,'List Kota'!G102)),MAX($F$1:F101)+1,0)","v":0},"Toili - Sulawesi Tengah",null,{"$f":"IFERROR(VLOOKUP(ROWS($I$1:I101),$F$2:$G$110,2,FALSE),\"\")","v":""}]
[null,null,null,null,null,{"$f":"IF(ISNUMBER(SEARCH('UI Tenaga Listrik'!$E$7,'List Kota'!G103)),MAX($F$1:F102)+1,0)","v":0},"Toli-Toli - Sulawesi Tengah",null,{"$f":"IFERROR(VLOOKUP(ROWS($I$1:I102),$F$2:$G$110,2,FALSE),\"\")","v":""}]
[null,null,null,null,null,{"$f":"IF(ISNUMBER(SEARCH('UI Tenaga Listrik'!$E$7,'List Kota'!G104)),MAX($F$1:F103)+1,0)","v":0},"Tual - Maluku",null,{"$f":"IFERROR(VLOOKUP(ROWS($I$1:I103),$F$2:$G$110,2,FALSE),\"\")","v":""}]
[null,null,null,null,null,{"$f":"IF(ISNUMBER(SEARCH('UI Tenaga Listrik'!$E$7,'List Kota'!G105)),MAX($F$1:F104)+1,0)","v":0},"Wahai - Maluku",null,{"$f":"IFERROR(VLOOKUP(ROWS($I$1:I104),$F$2:$G$110,2,FALSE),\"\")","v":""}]
[null,null,null,null,null,{"$f":"IF(ISNUMBER(SEARCH('UI Tenaga Listrik'!$E$7,'List Kota'!G106)),MAX($F$1:F105)+1,0)","v":0},"Waingapu - NTT",null,{"$f":"IFERROR(VLOOKUP(ROWS($I$1:I105),$F$2:$G$110,2,FALSE),\"\")","v":""}]
[null,null,null,null,null,{"$f":"IF(ISNUMBER(SEARCH('UI Tenaga Listrik'!$E$7,'List Kota'!G107)),MAX($F$1:F106)+1,0)","v":0},"Wakai - Sulawesi Tengah",null,{"$f":"IFERROR(VLOOKUP(ROWS($I$1:I106),$F$2:$G$110,2,FALSE),\"\")","v":""}]
[null,null,null,null,null,{"$f":"IF(ISNUMBER(SEARCH('UI Tenaga Listrik'!$E$7,'List Kota'!G108)),MAX($F$1:F107)+1,0)","v":0},"Wangi-Wangi - SulTra",null,{"$f":"IFERROR(VLOOKUP(ROWS($I$1:I107),$F$2:$G$110,2,FALSE),\"\")","v":""}]
[null,null,null,null,null,{"$f":"IF(ISNUMBER(SEARCH('UI Tenaga Listrik'!$E$7,'List Kota'!G109)),MAX($F$1:F108)+1,0)","v":0},"Werinama - Maluku",null,{"$f":"IFERROR(VLOOKUP(ROWS($I$1:I108),$F$2:$G$110,2,FALSE),\"\")","v":""}]

{"sheet":"List BBM","index":14,"n_rows":52,"n_cols":14,"rows_kept":52,"cut":false,"hidden":true,"merged":[]}
["Energi Bergerak",null,null,{"$f":"COUNTIF(E:E,\"?*\")","v":18},null,null,null,null,"Energi Tidak Bergerak",null,null,null,{"$f":"COUNTIF(N:N,\"?*\")","v":46}]
[null,{"$f":"IF(ISNUMBER(SEARCH('UI Bahan Bakar'!$E$9,'List BBM'!C2)),MAX($B$1:B1,A2)+1,0)","v":1},"LNG/CNG",{"$f":"OFFSET($E$2,0,0,COUNTIF(E:E,\"?*\"),1)","v":"LNG/CNG"},{"$f":"IFERROR(VLOOKUP(ROWS($E$1:E1),$B$2:$C$19,2,FALSE),\"\")","v":"LNG/CNG"},null,null,null,null,null,{"$f":"IF(ISNUMBER(SEARCH('UI Bahan Bakar'!$E$11,'List BBM'!L2)),MAX($K$1:K1,J2)+1,0)","v":1},"Minyak Mentah",{"$f":"OFFSET($N$2,0,0,COUNTIF(N:N,\"?*\"),1)","v":"Minyak Mentah"},{"$f":"IFERROR(VLOOKUP(ROWS($N$1:N1),$K$2:$L$52,2,FALSE),\"\")","v":"Minyak Mentah"}]
[null,{"$f":"IF(ISNUMBER(SEARCH('UI Bahan Bakar'!$E$9,'List BBM'!C3)),MAX($B$1:B2,A3)+1,0)","v":2},"Premium",null,{"$f":"IFERROR(VLOOKUP(ROWS($E$1:E2),$B$2:$C$19,2,FALSE),\"\")","v":"Premium"},null,null,null,null,null,{"$f":"IF(ISNUMBER(SEARCH('UI Bahan Bakar'!$E$11,'List BBM'!L3)),MAX($K$1:K2,J3)+1,0)","v":2},"Orimulsion",null,{"$f":"IFERROR(VLOOKUP(ROWS($N$1:N2),$K$2:$L$52,2,FALSE),\"\")","v":"Orimulsion"}]
[null,{"$f":"IF(ISNUMBER(SEARCH('UI Bahan Bakar'!$E$9,'List BBM'!C4)),MAX($B$1:B3,A4)+1,0)","v":3},"Pertalite",null,{"$f":"IFERROR(VLOOKUP(ROWS($E$1:E3),$B$2:$C$19,2,FALSE),\"\")","v":"Pertalite"},null,null,null,null,null,{"$f":"IF(ISNUMBER(SEARCH('UI Bahan Bakar'!$E$11,'List BBM'!L4)),MAX($K$1:K3,J4)+1,0)","v":3},"LNG/CNG",null,{"$f":"IFERROR(VLOOKUP(ROWS($N$1:N3),$K$2:$L$52,2,FALSE),\"\")","v":"LNG/CNG"}]
[null,{"$f":"IF(ISNUMBER(SEARCH('UI Bahan Bakar'!$E$9,'List BBM'!C5)),MAX($B$1:B4,A5)+1,0)","v":4},"Pertamax",null,{"$f":"IFERROR(VLOOKUP(ROWS($E$1:E4),$B$2:$C$19,2,FALSE),\"\")","v":"Pertamax"},null,null,null,null,null,{"$f":"IF(ISNUMBER(SEARCH('UI Bahan Bakar'!$E$11,'List BBM'!L5)),MAX($K$1:K4,J5)+1,0)","v":4},"Premium",null,{"$f":"IFERROR(VLOOKUP(ROWS($N$1:N4),$K$2:$L$52,2,FALSE),\"\")","v":"Premium"}]
[null,{"$f":"IF(ISNUMBER(SEARCH('UI Bahan Bakar'!$E$9,'List BBM'!C6)),MAX($B$1:B5,A6)+1,0)","v":5},"Pertamax Plus/Turbo",null,{"$f":"IFERROR(VLOOKUP(ROWS($E$1:E5),$B$2:$C$19,2,FALSE),\"\")","v":"Pertamax Plus/Turbo"},null,null,null,null,null,{"$f":"IF(ISNUMBER(SEARCH('UI Bahan Bakar'!$E$11,'List BBM'!L6)),MAX($K$1:K5,J6)+1,0)","v":5},"Pertalite",null,{"$f":"IFERROR(VLOOKUP(ROWS($N$1:N5),$K$2:$L$52,2,FALSE),\"\")","v":"Pertalite"}]
[null,{"$f":"IF(ISNUMBER(SEARCH('UI Bahan Bakar'!$E$9,'List BBM'!C7)),MAX($B$1:B6,A7)+1,0)","v":6},"Avgas",null,{"$f":"IFERROR(VLOOKUP(ROWS($E$1:E6),$B$2:$C$19,2,FALSE),\"\")","v":"Avgas"},null,null,null,null,null,{"$f":"IF(ISNUMBER(SEARCH('UI Bahan Bakar'!$E$11,'List BBM'!L7)),MAX($K$1:K6,J7)+1,0)","v":6},"Pertamax",null,{"$f":"IFERROR(VLOOKUP(ROWS($N$1:N6),$K$2:$L$52,2,FALSE),\"\")","v":"Pertamax"}]
[null,{"$f":"IF(ISNUMBER(SEARCH('UI Bahan Bakar'!$E$9,'List BBM'!C8)),MAX($B$1:B7,A8)+1,0)","v":7},"Avtur",null,{"$f":"IFERROR(VLOOKUP(ROWS($E$1:E7),$B$2:$C$19,2,FALSE),\"\")","v":"Avtur"},null,null,null,null,null,{"$f":"IF(ISNUMBER(SEARCH('UI Bahan Bakar'!$E$11,'List BBM'!L8)),MAX($K$1:K7,J8)+1,0)","v":7},"Pertamax Plus/Turbo",null,{"$f":"IFERROR(VLOOKUP(ROWS($N$1:N7),$K$2:$L$52,2,FALSE),\"\")","v":"Pertamax Plus/Turbo"}]
[null,{"$f":"IF(ISNUMBER(SEARCH('UI Bahan Bakar'!$E$9,'List BBM'!C9)),MAX($B$1:B8,A9)+1,0)","v":8},"Kerosin Jet",null,{"$f":"IFERROR(VLOOKUP(ROWS($E$1:E8),$B$2:$C$19,2,FALSE),\"\")","v":"Kerosin Jet"},null,null,null,null,null,{"$f":"IF(ISNUMBER(SEARCH('UI Bahan Bakar'!$E$11,'List BBM'!L9)),MAX($K$1:K8,J9)+1,0)","v":8},"Avgas",null,{"$f":"IFERROR(VLOOKUP(ROWS($N$1:N8),$K$2:$L$52,2,FALSE),\"\")","v":"Avgas"}]
[null,{"$f":"IF(ISNUMBER(SEARCH('UI Bahan Bakar'!$E$9,'List BBM'!C10)),MAX($B$1:B9,A10)+1,0)","v":9},"Kerosin Lain",null,{"$f":"IFERROR(VLOOKUP(ROWS($E$1:E9),$B$2:$C$19,2,FALSE),\"\")","v":"Kerosin Lain"},null,null,null,null,null,{"$f":"IF(ISNUMBER(SEARCH('UI Bahan Bakar'!$E$11,'List BBM'!L10)),MAX($K$1:K9,J10)+1,0)","v":9},"Avtur",null,{"$f":"IFERROR(VLOOKUP(ROWS($N$1:N9),$K$2:$L$52,2,FALSE),\"\")","v":"Avtur"}]
[null,{"$f":"IF(ISNUMBER(SEARCH('UI Bahan Bakar'!$E$9,'List BBM'!C11)),MAX($B$1:B10,A11)+1,0)","v":10},"Solar",null,{"$f":"IFERROR(VLOOKUP(ROWS($E$1:E10),$B$2:$C$19,2,FALSE),\"\")","v":"Solar"},null,null,null,null,null,{"$f":"IF(ISNUMBER(SEARCH('UI Bahan Bakar'!$E$11,'List BBM'!L11)),MAX($K$1:K10,J11)+1,0)","v":10},"Kerosin Jet",null,{"$f":"IFERROR(VLOOKUP(ROWS($N$1:N10),$K$2:$L$52,2,FALSE),\"\")","v":"Kerosin Jet"}]
[null,{"$f":"IF(ISNUMBER(SEARCH('UI Bahan Bakar'!$E$9,'List BBM'!C12)),MAX($B$1:B11,A12)+1,0)","v":11},"Residu",null,{"$f":"IFERROR(VLOOKUP(ROWS($E$1:E11),$B$2:$C$19,2,FALSE),\"\")","v":"Residu"},null,null,null,null,null,{"$f":"IF(ISNUMBER(SEARCH('UI Bahan Bakar'!$E$11,'List BBM'!L12)),MAX($K$1:K11,J12)+1,0)","v":11},"Kerosin Lain",null,{"$f":"IFERROR(VLOOKUP(ROWS($N$1:N11),$K$2:$L$52,2,FALSE),\"\")","v":"Kerosin Lain"}]
[null,{"$f":"IF(ISNUMBER(SEARCH('UI Bahan Bakar'!$E$9,'List BBM'!C13)),MAX($B$1:B12,A13)+1,0)","v":12},"LPG",null,{"$f":"IFERROR(VLOOKUP(ROWS($E$1:E12),$B$2:$C$19,2,FALSE),\"\")","v":"LPG"},null,null,null,null,null,{"$f":"IF(ISNUMBER(SEARCH('UI Bahan Bakar'!$E$11,'List BBM'!L13)),MAX($K$1:K12,J13)+1,0)","v":12},"Shale oil",null,{"$f":"IFERROR(VLOOKUP(ROWS($N$1:N12),$K$2:$L$52,2,FALSE),\"\")","v":"Shale oil"}]
[null,{"$f":"IF(ISNUMBER(SEARCH('UI Bahan Bakar'!$E$9,'List BBM'!C14)),MAX($B$1:B13,A14)+1,0)","v":13},"Pelumas",null,{"$f":"IFERROR(VLOOKUP(ROWS($E$1:E13),$B$2:$C$19,2,FALSE),\"\")","v":"Pelumas"},null,null,null,null,null,{"$f":"IF(ISNUMBER(SEARCH('UI Bahan Bakar'!$E$11,'List BBM'!L14)),MAX($K$1:K13,J14)+1,0)","v":13},"Solar",null,{"$f":"IFERROR(VLOOKUP(ROWS($N$1:N13),$K$2:$L$52,2,FALSE),\"\")","v":"Solar"}]
[null,{"$f":"IF(ISNUMBER(SEARCH('UI Bahan Bakar'!$E$9,'List BBM'!C15)),MAX($B$1:B14,A15)+1,0)","v":14},"Refinery gas",null,{"$f":"IFERROR(VLOOKUP(ROWS($E$1:E14),$B$2:$C$19,2,FALSE),\"\")","v":"Refinery gas"},null,null,null,null,null,{"$f":"IF(ISNUMBER(SEARCH('UI Bahan Bakar'!$E$11,'List BBM'!L15)),MAX($K$1:K14,J15)+1,0)","v":14},"Residu",null,{"$f":"IFERROR(VLOOKUP(ROWS($N$1:N14),$K$2:$L$52,2,FALSE),\"\")","v":"Residu"}]
[null,{"$f":"IF(ISNUMBER(SEARCH('UI Bahan Bakar'!$E$9,'List BBM'!C16)),MAX($B$1:B15,A16)+1,0)","v":15},"Parafin",null,{"$f":"IFERROR(VLOOKUP(ROWS($E$1:E15),$B$2:$C$19,2,FALSE),\"\")","v":"Parafin"},null,null,null,null,null,{"$f":"IF(ISNUMBER(SEARCH('UI Bahan Bakar'!$E$11,'List BBM'!L16)),MAX($K$1:K15,J16)+1,0)","v":15},"LPG",null,{"$f":"IFERROR(VLOOKUP(ROWS($N$1:N15),$K$2:$L$52,2,FALSE),\"\")","v":"LPG"}]
[null,{"$f":"IF(ISNUMBER(SEARCH('UI Bahan Bakar'!$E$9,'List BBM'!C17)),MAX($B$1:B16,A17)+1,0)","v":16},"Solvent",null,{"$f":"IFERROR(VLOOKUP(ROWS($E$1:E16),$B$2:$C$19,2,FALSE),\"\")","v":"Solvent"},null,null,null,null,null,{"$f":"IF(ISNUMBER(SEARCH('UI Bahan Bakar'!$E$11,'List BBM'!L17)),MAX($K$1:K16,J17)+1,0)","v":16},"Ethana",null,{"$f":"IFERROR(VLOOKUP(ROWS($N$1:N16),$K$2:$L$52,2,FALSE),\"\")","v":"Ethana"}]
[null,{"$f":"IF(ISNUMBER(SEARCH('UI Bahan Bakar'!$E$9,'List BBM'!C18)),MAX($B$1:B17,A18)+1,0)","v":17},"Batubara Sub-bitumen",null,{"$f":"IFERROR(VLOOKUP(ROWS($E$1:E17),$B$2:$C$19,2,FALSE),\"\")","v":"Batubara Sub-bitumen"},null,null,null,null,null,{"$f":"IF(ISNUMBER(SEARCH('UI Bahan Bakar'!$E$11,'List BBM'!L18)),MAX($K$1:K17,J18)+1,0)","v":17},"Nafta",null,{"$f":"IFERROR(VLOOKUP(ROWS($N$1:N17),$K$2:$L$52,2,FALSE),\"\")","v":"Nafta"}]
[null,{"$f":"IF(ISNUMBER(SEARCH('UI Bahan Bakar'!$E$9,'List BBM'!C19)),MAX($B$1:B18,A19)+1,0)","v":18},"Gas Alam",null,{"$f":"IFERROR(VLOOKUP(ROWS($E$1:E18),$B$2:$C$19,2,FALSE),\"\")","v":"Gas Alam"},null,null,null,null,null,{"$f":"IF(ISNUMBER(SEARCH('UI Bahan Bakar'!$E$11,'List BBM'!L19)),MAX($K$1:K18,J19)+1,0)","v":18},"Bitumen",null,{"$f":"IFERROR(VLOOKUP(ROWS($N$1:N18),$K$2:$L$52,2,FALSE),\"\")","v":"Bitumen"}]
[null,null,null,null,null,null,null,null,null,null,{"$f":"IF(ISNUMBER(SEARCH('UI Bahan Bakar'!$E$11,'List BBM'!L20)),MAX($K$1:K19,J20)+1,0)","v":19},"Pelumas",null,{"$f":"IFERROR(VLOOKUP(ROWS($N$1:N19),$K$2:$L$52,2,FALSE),\"\")","v":"Pelumas"}]
[null,null,null,null,null,null,null,null,null,null,{"$f":"IF(ISNUMBER(SEARCH('UI Bahan Bakar'!$E$11,'List BBM'!L21)),MAX($K$1:K20,J21)+1,0)","v":20},"Kokas",null,{"$f":"IFERROR(VLOOKUP(ROWS($N$1:N20),$K$2:$L$52,2,FALSE),\"\")","v":"Kokas"}]
[null,null,null,null,null,null,null,null,null,null,{"$f":"IF(ISNUMBER(SEARCH('UI Bahan Bakar'!$E$11,'List BBM'!L22)),MAX($K$1:K21,J22)+1,0)","v":21},"Refinery feedstock",null,{"$f":"IFERROR(VLOOKUP(ROWS($N$1:N21),$K$2:$L$52,2,FALSE),\"\")","v":"Refinery feedstock"}]
[null,null,null,null,null,null,null,null,null,null,{"$f":"IF(ISNUMBER(SEARCH('UI Bahan Bakar'!$E$11,'List BBM'!L23)),MAX($K$1:K22,J23)+1,0)","v":22},"Refinery gas",null,{"$f":"IFERROR(VLOOKUP(ROWS($N$1:N22),$K$2:$L$52,2,FALSE),\"\")","v":"Refinery gas"}]
[null,null,null,null,null,null,null,null,null,null,{"$f":"IF(ISNUMBER(SEARCH('UI Bahan Bakar'!$E$11,'List BBM'!L24)),MAX($K$1:K23,J24)+1,0)","v":23},"Parafin",null,{"$f":"IFERROR(VLOOKUP(ROWS($N$1:N23),$K$2:$L$52,2,FALSE),\"\")","v":"Parafin"}]
[null,null,null,null,null,null,null,null,null,null,{"$f":"IF(ISNUMBER(SEARCH('UI Bahan Bakar'!$E$11,'List BBM'!L25)),MAX($K$1:K24,J25)+1,0)","v":24},"Solvent",null,{"$f":"IFERROR(VLOOKUP(ROWS($N$1:N24),$K$2:$L$52,2,FALSE),\"\")","v":"Solvent"}]
[null,null,null,null,null,null,null,null,null,null,{"$f":"IF(ISNUMBER(SEARCH('UI Bahan Bakar'!$E$11,'List BBM'!L26)),MAX($K$1:K25,J26)+1,0)","v":25},"Antrasit",null,{"$f":"IFERROR(VLOOKUP(ROWS($N$1:N25),$K$2:$L$52,2,FALSE),\"\")","v":"Antrasit"}]
[null,null,null,null,null,null,null,null,null,null,{"$f":"IF(ISNUMBER(SEARCH('UI Bahan Bakar'!$E$11,'List BBM'!L27)),MAX($K$1:K26,J27)+1,0)","v":26},"Arang Kokas",null,{"$f":"IFERROR(VLOOKUP(ROWS($N$1:N26),$K$2:$L$52,2,FALSE),\"\")","v":"Arang Kokas"}]
[null,null,null,null,null,null,null,null,null,null,{"$f":"IF(ISNUMBER(SEARCH('UI Bahan Bakar'!$E$11,'List BBM'!L28)),MAX($K$1:K27,J28)+1,0)","v":27},"Batubara Bitumen",null,{"$f":"IFERROR(VLOOKUP(ROWS($N$1:N27),$K$2:$L$52,2,FALSE),\"\")","v":"Batubara Bitumen"}]
[null,null,null,null,null,null,null,null,null,null,{"$f":"IF(ISNUMBER(SEARCH('UI Bahan Bakar'!$E$11,'List BBM'!L29)),MAX($K$1:K28,J29)+1,0)","v":28},"Batubara Sub-bitumen",null,{"$f":"IFERROR(VLOOKUP(ROWS($N$1:N28),$K$2:$L$52,2,FALSE),\"\")","v":"Batubara Sub-bitumen"}]
[null,null,null,null,null,null,null,null,null,null,{"$f":"IF(ISNUMBER(SEARCH('UI Bahan Bakar'!$E$11,'List BBM'!L30)),MAX($K$1:K29,J30)+1,0)","v":29},"Lignit",null,{"$f":"IFERROR(VLOOKUP(ROWS($N$1:N29),$K$2:$L$52,2,FALSE),\"\")","v":"Lignit"}]
[null,null,null,null,null,null,null,null,null,null,{"$f":"IF(ISNUMBER(SEARCH('UI Bahan Bakar'!$E$11,'List BBM'!L31)),MAX($K$1:K30,J31)+1,0)","v":30},"Bubuk Tar",null,{"$f":"IFERROR(VLOOKUP(ROWS($N$1:N30),$K$2:$L$52,2,FALSE),\"\")","v":"Bubuk Tar"}]
[null,null,null,null,null,null,null,null,null,null,{"$f":"IF(ISNUMBER(SEARCH('UI Bahan Bakar'!$E$11,'List BBM'!L32)),MAX($K$1:K31,J32)+1,0)","v":31},"Briket Batubara",null,{"$f":"IFERROR(VLOOKUP(ROWS($N$1:N31),$K$2:$L$52,2,FALSE),\"\")","v":"Briket Batubara"}]
[null,null,null,null,null,null,null,null,null,null,{"$f":"IF(ISNUMBER(SEARCH('UI Bahan Bakar'!$E$11,'List BBM'!L33)),MAX($K$1:K32,J33)+1,0)","v":32},"Kokas Lignit",null,{"$f":"IFERROR(VLOOKUP(ROWS($N$1:N32),$K$2:$L$52,2,FALSE),\"\")","v":"Kokas Lignit"}]
[null,null,null,null,null,null,null,null,null,null,{"$f":"IF(ISNUMBER(SEARCH('UI Bahan Bakar'!$E$11,'List BBM'!L34)),MAX($K$1:K33,J34)+1,0)","v":33},"Kokas Gas",null,{"$f":"IFERROR(VLOOKUP(ROWS($N$1:N33),$K$2:$L$52,2,FALSE),\"\")","v":"Kokas Gas"}]
[null,null,null,null,null,null,null,null,null,null,{"$f":"IF(ISNUMBER(SEARCH('UI Bahan Bakar'!$E$11,'List BBM'!L35)),MAX($K$1:K34,J35)+1,0)","v":34},"Tar Batubara",null,{"$f":"IFERROR(VLOOKUP(ROWS($N$1:N34),$K$2:$L$52,2,FALSE),\"\")","v":"Tar Batubara"}]
[null,null,null,null,null,null,null,null,null,null,{"$f":"IF(ISNUMBER(SEARCH('UI Bahan Bakar'!$E$11,'List BBM'!L36)),MAX($K$1:K35,J36)+1,0)","v":35},"Gas Works Gas",null,{"$f":"IFERROR(VLOOKUP(ROWS($N$1:N35),$K$2:$L$52,2,FALSE),\"\")","v":"Gas Works Gas"}]
[null,null,null,null,null,null,null,null,null,null,{"$f":"IF(ISNUMBER(SEARCH('UI Bahan Bakar'!$E$11,'List BBM'!L37)),MAX($K$1:K36,J37)+1,0)","v":36},"Coke Oven Gas",null,{"$f":"IFERROR(VLOOKUP(ROWS($N$1:N36),$K$2:$L$52,2,FALSE),\"\")","v":"Coke Oven Gas"}]
[null,null,null,null,null,null,null,null,null,null,{"$f":"IF(ISNUMBER(SEARCH('UI Bahan Bakar'!$E$11,'List BBM'!L38)),MAX($K$1:K37,J38)+1,0)","v":37},"Blast Furnace Gas",null,{"$f":"IFERROR(VLOOKUP(ROWS($N$1:N37),$K$2:$L$52,2,FALSE),\"\")","v":"Blast Furnace Gas"}]
[null,null,null,null,null,null,null,null,null,null,{"$f":"IF(ISNUMBER(SEARCH('UI Bahan Bakar'!$E$11,'List BBM'!L39)),MAX($K$1:K38,J39)+1,0)","v":38},"Oxygen Steel Furnace Gas",null,{"$f":"IFERROR(VLOOKUP(ROWS($N$1:N38),$K$2:$L$52,2,FALSE),\"\")","v":"Oxygen Steel Furnace Gas"}]
[null,null,null,null,null,null,null,null,null,null,{"$f":"IF(ISNUMBER(SEARCH('UI Bahan Bakar'!$E$11,'List BBM'!L40)),MAX($K$1:K39,J40)+1,0)","v":39},"Gas Alam",null,{"$f":"IFERROR(VLOOKUP(ROWS($N$1:N39),$K$2:$L$52,2,FALSE),\"\")","v":"Gas Alam"}]
[null,null,null,null,null,null,null,null,null,null,{"$f":"IF(ISNUMBER(SEARCH('UI Bahan Bakar'!$E$11,'List BBM'!L41)),MAX($K$1:K40,J41)+1,0)","v":40},"Limbah Kota",null,{"$f":"IFERROR(VLOOKUP(ROWS($N$1:N40),$K$2:$L$52,2,FALSE),\"\")","v":"Limbah Kota"}]
[null,null,null,null,null,null,null,null,null,null,{"$f":"IF(ISNUMBER(SEARCH('UI Bahan Bakar'!$E$11,'List BBM'!L42)),MAX($K$1:K41,J42)+1,0)","v":41},"Minyak Limbah",null,{"$f":"IFERROR(VLOOKUP(ROWS($N$1:N41),$K$2:$L$52,2,FALSE),\"\")","v":"Minyak Limbah"}]
[null,null,null,null,null,null,null,null,null,null,{"$f":"IF(ISNUMBER(SEARCH('UI Bahan Bakar'!$E$11,'List BBM'!L43)),MAX($K$1:K42,J43)+1,0)","v":42},"Biodiesel",null,{"$f":"IFERROR(VLOOKUP(ROWS($N$1:N42),$K$2:$L$52,2,FALSE),\"\")","v":"Biodiesel"}]
[null,null,null,null,null,null,null,null,null,null,{"$f":"IF(ISNUMBER(SEARCH('UI Bahan Bakar'!$E$11,'List BBM'!L44)),MAX($K$1:K43,J44)+1,0)","v":43},"Biogasoline",null,{"$f":"IFERROR(VLOOKUP(ROWS($N$1:N43),$K$2:$L$52,2,FALSE),\"\")","v":"Biogasoline"}]
[null,null,null,null,null,null,null,null,null,null,{"$f":"IF(ISNUMBER(SEARCH('UI Bahan Bakar'!$E$11,'List BBM'!L45)),MAX($K$1:K44,J45)+1,0)","v":44},"Landfill Gas",null,{"$f":"IFERROR(VLOOKUP(ROWS($N$1:N44),$K$2:$L$52,2,FALSE),\"\")","v":"Landfill Gas"}]
[null,null,null,null,null,null,null,null,null,null,{"$f":"IF(ISNUMBER(SEARCH('UI Bahan Bakar'!$E$11,'List BBM'!L46)),MAX($K$1:K45,J46)+1,0)","v":45},"Sludge Gas",null,{"$f":"IFERROR(VLOOKUP(ROWS($N$1:N45),$K$2:$L$52,2,FALSE),\"\")","v":"Sludge Gas"}]
[null,null,null,null,null,null,null,null,null,null,{"$f":"IF(ISNUMBER(SEARCH('UI Bahan Bakar'!$E$11,'List BBM'!L47)),MAX($K$1:K46,J47)+1,0)","v":46},"Biogas Lainnya",null,{"$f":"IFERROR(VLOOKUP(ROWS($N$1:N46),$K$2:$L$52,2,FALSE),\"\")","v":"Biogas Lainnya"}]
[null,null,null,null,null,null,null,null,null,null,{"$f":"IF(ISNUMBER(SEARCH('UI Bahan Bakar'!$E$11,'List BBM'!L48)),MAX($K$1:K47,J48)+1,0)","v":47},"Gambut"]
[null,null,null,null,null,null,null,null,null,null,{"$f":"IF(ISNUMBER(SEARCH('UI Bahan Bakar'!$E$11,'List BBM'!L49)),MAX($K$1:K48,J49)+1,0)","v":48},"Kayu/Limbah Kayu"]
[null,null,null,null,null,null,null,null,null,null,{"$f":"IF(ISNUMBER(SEARCH('UI Bahan Bakar'!$E$11,'List BBM'!L50)),MAX($K$1:K49,J50)+1,0)","v":49},"Arang Kayu"]
[null,null,null,null,null,null,null,null,null,null,{"$f":"IF(ISNUMBER(SEARCH('UI Bahan Bakar'!$E$11,'List BBM'!L51)),MAX($K$1:K50,J51)+1,0)","v":50},"Biomass padat lain"]
[null,null,null,null,null,null,null,null,null,null,{"$f":"IF(ISNUMBER(SEARCH('UI Bahan Bakar'!$E$11,'List BBM'!L52)),MAX($K$1:K51,J52)+1,0)","v":51},"Liquor Hitam"]